Workbook

Sheet Рейтинг министерства
A1: Ведомство | B1: Советы | C1: Соцсети | D1: Индекс OC | E1: Индекс СС | F1: Индекс
A2: МВД России | B2: 0.5849056604 | C2: 0.6470588235 | D2: =IF(B2>=0.7,"A",IF(B2>0.4,"B","C")) -> B | E2: =IF(C2>=0.7,"A",IF(C2>0.4,"B","C")) -> B | F2: =IF(AND(D2="A",E2="A"),"A",IF(OR(D2="C",E2="C"),"C","B")) -> B
A3: МИД России | B3: 0 | C3: 0.4117647059 | D3: =IF(B3>=0.7,"A",IF(B3>0.4,"B","C")) -> C | E3: =IF(C3>=0.7,"A",IF(C3>0.4,"B","C")) -> B | F3: =IF(AND(D3="A",E3="A"),"A",IF(OR(D3="C",E3="C"),"C","B")) -> C
A4: Минвостокразвития России | B4: 0.1320754717 | C4: 0.5294117647 | D4: C | E4: B | F4: C
A5: Минздрав России | B5: 0.4528301887 | C5: 0.4117647059 | D5: B | E5: B | F5: B
A6: Минкомсвязь России | B6: 0.09433962264 | C6: 0.4705882353 | D6: C | E6: B | F6: C
A7: Минкультуры России | B7: 0.6981132075 | C7: 0.7647058824 | D7: B | E7: A | F7: B
A8: Минобороны России | B8: 0.1698113208 | C8: 0.7058823529 | D8: C | E8: A | F8: C
A9: Минобрнауки России | B9: 0.4716981132 | C9: 0.7058823529 | D9: B | E9: A | F9: B
A10: Минприроды России | B10: 0.5094339623 | C10: 0.3529411765 | D10: B | E10: C | F10: C
A11: Минпромторг России | B11: 0.2452830189 | C11: 0.5294117647 | D11: C | E11: B | F11: C
A12: Минпросвещения России | B12: 0.2075471698 | C12: 0.5882352941 | D12: C | E12: B | F12: C
A13: Минсельхоз России | B13: 0.1698113208 | C13: 0.6470588235 | D13: C | E13: B | F13: C
A14: Минспорт России | B14: 0.6981132075 | C14: 0.5882352941 | D14: B | E14: B | F14: B
A15: Минстрой России | B15: 0.7169811321 | C15: 0.6470588235 | D15: A | E15: B | F15: B
A16: Минтранс России | B16: 0.4716981132 | C16: 0.4705882353 | D16: B | E16: B | F16: B
A17: Минтруд России | B17: 0.5471698113 | C17: 0.05882352941 | D17: B | E17: C | F17: C
A18: Минфин России | B18: 0.5283018868 | C18: 0.4705882353 | D18: B | E18: B | F18: B
A19: Минэкономразвития России | B19: 0.3773584906 | C19: 0.5294117647 | D19: C | E19: B | F19: C
A20: Минэнерго России | B20: 0.4528301887 | C20: 0.5294117647 | D20: B | E20: B | F20: B
A21: Минюст России | B21: 0.1320754717 | C21: 0 | D21: C | E21: C | F21: C
A22: МЧС России | B22: 0.358490566 | C22: 0.6470588235 | D22: C | E22: B | F22: C

Sheet Рейтинг служб
A1: Ведомство | B1: Советы | C1: Соцсети | D1: Индекс OC | E1: Индекс СС | F1: Индекс
A2: Главное управление специальных программ Президента Российской Федерации (ГУСП) | B2: 0 | C2: 0 | D2: =IF(B2>=0.7,"A",IF(B2>0.4,"B","C")) -> C | E2: =IF(C2>=0.7,"A",IF(C2>0.4,"B","C")) -> C | F2: =IF(AND(D2="A",E2="A"),"A",IF(OR(D2="C",E2="C"),"C","B")) -> C
A3: Государственная фельдъегерская служба Российской Федерации (ГФС России) | B3: 0 | C3: 0 | D3: =IF(B3>=0.7,"A",IF(B3>0.4,"B","C")) -> C | E3: =IF(C3>=0.7,"A",IF(C3>0.4,"B","C")) -> C | F3: =IF(AND(D3="A",E3="A"),"A",IF(OR(D3="C",E3="C"),"C","B")) -> C
A4: Казначейство России | B4: 0.4528301887 | C4: 0.529411765 | D4: =IF(B4>=0.7,"A",IF(B4>0.4,"B","C")) -> B | E4: =IF(C4>=0.7,"A",IF(C4>0.4,"B","C")) -> B | F4: =IF(AND(D4="A",E4="A"),"A",IF(OR(D4="C",E4="C"),"C","B")) -> B
A5: Пробирная палата (?) | B5: 0 | C5: 0 | D5: =IF(B5>=0.7,"A",IF(B5>0.4,"B","C")) -> C | E5: =IF(C5>=0.7,"A",IF(C5>0.4,"B","C")) -> C | F5: =IF(AND(D5="A",E5="A"),"A",IF(OR(D5="C",E5="C"),"C","B")) -> C
A6: Росавиация | B6: 0.3773584906 | C6: 0.294117647 | D6: =IF(B6>=0.7,"A",IF(B6>0.4,"B","C")) -> C | E6: =IF(C6>=0.7,"A",IF(C6>0.4,"B","C")) -> C | F6: =IF(AND(D6="A",E6="A"),"A",IF(OR(D6="C",E6="C"),"C","B")) -> C
A7: Росавтодор | B7: 0.6603773585 | C7: 0.647058824 | D7: =IF(B7>=0.7,"A",IF(B7>0.4,"B","C")) -> B | E7: =IF(C7>=0.7,"A",IF(C7>0.4,"B","C")) -> B | F7: =IF(AND(D7="A",E7="A"),"A",IF(OR(D7="C",E7="C"),"C","B")) -> B
A8: Росаккредитация | B8: 0.4339622642 | C8: 0.470588235 | D8: =IF(B8>=0.7,"A",IF(B8>0.4,"B","C")) -> B | E8: =IF(C8>=0.7,"A",IF(C8>0.4,"B","C")) -> B | F8: =IF(AND(D8="A",E8="A"),"A",IF(OR(D8="C",E8="C"),"C","B")) -> B
A9: Росалкогольрегулирование | B9: 0.2452830189 | C9: 0.529411765 | D9: =IF(B9>=0.7,"A",IF(B9>0.4,"B","C")) -> C | E9: =IF(C9>=0.7,"A",IF(C9>0.4,"B","C")) -> B | F9: =IF(AND(D9="A",E9="A"),"A",IF(OR(D9="C",E9="C"),"C","B")) -> C
A10: Росархив | B10: 0.7169811321 | C10: 0.470588235 | D10: =IF(B10>=0.7,"A",IF(B10>0.4,"B","C")) -> A | E10: =IF(C10>=0.7,"A",IF(C10>0.4,"B","C")) -> B | F10: =IF(AND(D10="A",E10="A"),"A",IF(OR(D10="C",E10="C"),"C","B")) -> B
A11: Росводресурсы | B11: 0.3018867925 | C11: 0 | D11: =IF(B11>=0.7,"A",IF(B11>0.4,"B","C")) -> C | E11: =IF(C11>=0.7,"A",IF(C11>0.4,"B","C")) -> C | F11: =IF(AND(D11="A",E11="A"),"A",IF(OR(D11="C",E11="C"),"C","B")) -> C
A12: Росгвардия | B12: 0 | C12: 0.470588235 | D12: =IF(B12>=0.7,"A",IF(B12>0.4,"B","C")) -> C | E12: =IF(C12>=0.7,"A",IF(C12>0.4,"B","C")) -> B | F12: =IF(AND(D12="A",E12="A"),"A",IF(OR(D12="C",E12="C"),"C","B")) -> C
A13: Росгидромет | B13: 0.5283018868 | C13: 0.529411765 | D13: =IF(B13>=0.7,"A",IF(B13>0.4,"B","C")) -> B | E13: =IF(C13>=0.7,"A",IF(C13>0.4,"B","C")) -> B | F13: =IF(AND(D13="A",E13="A"),"A",IF(OR(D13="C",E13="C"),"C","B")) -> B
A14: Росжелдор | B14: 0.5094339623 | C14: 0 | D14: =IF(B14>=0.7,"A",IF(B14>0.4,"B","C")) -> B | E14: =IF(C14>=0.7,"A",IF(C14>0.4,"B","C")) -> C | F14: =IF(AND(D14="A",E14="A"),"A",IF(OR(D14="C",E14="C"),"C","B")) -> C
A15: Росздравнадзор | B15: 0.3773584906 | C15: 0.294117647 | D15: =IF(B15>=0.7,"A",IF(B15>0.4,"B","C")) -> C | E15: =IF(C15>=0.7,"A",IF(C15>0.4,"B","C")) -> C | F15: =IF(AND(D15="A",E15="A"),"A",IF(OR(D15="C",E15="C"),"C","B")) -> C
A16: Росимущество | B16: 0.4339622642 | C16: 0.647058824 | D16: =IF(B16>=0.7,"A",IF(B16>0.4,"B","C")) -> B | E16: =IF(C16>=0.7,"A",IF(C16>0.4,"B","C")) -> B | F16: =IF(AND(D16="A",E16="A"),"A",IF(OR(D16="C",E16="C"),"C","B")) -> B
A17: Роскомнадзор | B17: 0.2264150943 | C17: 0.411764706 | D17: =IF(B17>=0.7,"A",IF(B17>0.4,"B","C")) -> C | E17: =IF(C17>=0.7,"A",IF(C17>0.4,"B","C")) -> B | F17: =IF(AND(D17="A",E17="A"),"A",IF(OR(D17="C",E17="C"),"C","B")) -> C
A18: Рослесхоз | B18: 0.4339622642 | C18: 0.588235294 | D18: =IF(B18>=0.7,"A",IF(B18>0.4,"B","C")) -> B | E18: =IF(C18>=0.7,"A",IF(C18>0.4,"B","C")) -> B | F18: =IF(AND(D18="A",E18="A"),"A",IF(OR(D18="C",E18="C"),"C","B")) -> B
A19: Росмолодёжь | B19: 0.2641509434 | C19: 0.588235294 | D19: =IF(B19>=0.7,"A",IF(B19>0.4,"B","C")) -> C | E19: =IF(C19>=0.7,"A",IF(C19>0.4,"B","C")) -> B | F19: =IF(AND(D19="A",E19="A"),"A",IF(OR(D19="C",E19="C"),"C","B")) -> C
A20: Росморречфлот | B20: 0.4339622642 | C20: 0.411764706 | D20: =IF(B20>=0.7,"A",IF(B20>0.4,"B","C")) -> B | E20: =IF(C20>=0.7,"A",IF(C20>0.4,"B","C")) -> B | F20: =IF(AND(D20="A",E20="A"),"A",IF(OR(D20="C",E20="C"),"C","B")) -> B
A21: Роснедра | B21: 0.3962264151 | C21: 0 | D21: =IF(B21>=0.7,"A",IF(B21>0.4,"B","C")) -> C | E21: =IF(C21>=0.7,"A",IF(C21>0.4,"B","C")) -> C | F21: =IF(AND(D21="A",E21="A"),"A",IF(OR(D21="C",E21="C"),"C","B")) -> C
A22: Рособрнадзор | B22: 0.320754717 | C22: 0.411764706 | D22: =IF(B22>=0.7,"A",IF(B22>0.4,"B","C")) -> C | E22: =IF(C22>=0.7,"A",IF(C22>0.4,"B","C")) -> B | F22: =IF(AND(D22="A",E22="A"),"A",IF(OR(D22="C",E22="C"),"C","B")) -> C
A23: Роспатент | B23: 0.5660377358 | C23: 0.588235294 | D23: =IF(B23>=0.7,"A",IF(B23>0.4,"B","C")) -> B | E23: =IF(C23>=0.7,"A",IF(C23>0.4,"B","C")) -> B | F23: =IF(AND(D23="A",E23="A"),"A",IF(OR(D23="C",E23="C"),"C","B")) -> B
A24: Роспечать | B24: 0.2830188679 | C24: 0 | D24: =IF(B24>=0.7,"A",IF(B24>0.4,"B","C")) -> C | E24: =IF(C24>=0.7,"A",IF(C24>0.4,"B","C")) -> C | F24: =IF(AND(D24="A",E24="A"),"A",IF(OR(D24="C",E24="C"),"C","B")) -> C
A25: Роспотребнадзор | B25: 0.5094339623 | C25: 0.352941176 | D25: =IF(B25>=0.7,"A",IF(B25>0.4,"B","C")) -> B | E25: =IF(C25>=0.7,"A",IF(C25>0.4,"B","C")) -> C | F25: =IF(AND(D25="A",E25="A"),"A",IF(OR(D25="C",E25="C"),"C","B")) -> C
A26: Росприроднадзор | B26: 0.1886792453 | C26: 0.647058824 | D26: =IF(B26>=0.7,"A",IF(B26>0.4,"B","C")) -> C | E26: =IF(C26>=0.7,"A",IF(C26>0.4,"B","C")) -> B | F26: =IF(AND(D26="A",E26="A"),"A",IF(OR(D26="C",E26="C"),"C","B")) -> C
A27: Росреестр | B27: 0.641509434 | C27: 0.529411765 | D27: =IF(B27>=0.7,"A",IF(B27>0.4,"B","C")) -> B | E27: =IF(C27>=0.7,"A",IF(C27>0.4,"B","C")) -> B | F27: =IF(AND(D27="A",E27="A"),"A",IF(OR(D27="C",E27="C"),"C","B")) -> B
A28: Росрезерв | B28: 0 | C28: 0.588235294 | D28: =IF(B28>=0.7,"A",IF(B28>0.4,"B","C")) -> C | E28: =IF(C28>=0.7,"A",IF(C28>0.4,"B","C")) -> B | F28: =IF(AND(D28="A",E28="A"),"A",IF(OR(D28="C",E28="C"),"C","B")) -> C
A29: Росрыболовство | B29: 0.4905660377 | C29: 0.294117647 | D29: =IF(B29>=0.7,"A",IF(B29>0.4,"B","C")) -> B | E29: =IF(C29>=0.7,"A",IF(C29>0.4,"B","C")) -> C | F29: =IF(AND(D29="A",E29="A"),"A",IF(OR(D29="C",E29="C"),"C","B")) -> C
A30: Россвязь | B30: 0.3396226415 | C30: 0.470588235 | D30: =IF(B30>=0.7,"A",IF(B30>0.4,"B","C")) -> C | E30: =IF(C30>=0.7,"A",IF(C30>0.4,"B","C")) -> B | F30: =IF(AND(D30="A",E30="A"),"A",IF(OR(D30="C",E30="C"),"C","B")) -> C
A31: Россельхознадзор | B31: 0.5660377358 | C31: 0.058823529 | D31: =IF(B31>=0.7,"A",IF(B31>0.4,"B","C")) -> B | E31: =IF(C31>=0.7,"A",IF(C31>0.4,"B","C")) -> C | F31: =IF(AND(D31="A",E31="A"),"A",IF(OR(D31="C",E31="C"),"C","B")) -> C
A32: Россотрудничество | B32: 0 | C32: 0.470588235 | D32: =IF(B32>=0.7,"A",IF(B32>0.4,"B","C")) -> C | E32: =IF(C32>=0.7,"A",IF(C32>0.4,"B","C")) -> B | F32: =IF(AND(D32="A",E32="A"),"A",IF(OR(D32="C",E32="C"),"C","B")) -> C
A33: Росстандарт | B33: 0.3962264151 | C33: 0.647058824 | D33: =IF(B33>=0.7,"A",IF(B33>0.4,"B","C")) -> C | E33: =IF(C33>=0.7,"A",IF(C33>0.4,"B","C")) -> B | F33: =IF(AND(D33="A",E33="A"),"A",IF(OR(D33="C",E33="C"),"C","B")) -> C
A34: Росстат | B34: 0.5283018868 | C34: 0.705882353 | D34: =IF(B34>=0.7,"A",IF(B34>0.4,"B","C")) -> B | E34: =IF(C34>=0.7,"A",IF(C34>0.4,"B","C")) -> A | F34: =IF(AND(D34="A",E34="A"),"A",IF(OR(D34="C",E34="C"),"C","B")) -> B
A35: Ростехнадзор | B35: 0.4905660377 | C35: 0.588235294 | D35: =IF(B35>=0.7,"A",IF(B35>0.4,"B","C")) -> B | E35: =IF(C35>=0.7,"A",IF(C35>0.4,"B","C")) -> B | F35: =IF(AND(D35="A",E35="A"),"A",IF(OR(D35="C",E35="C"),"C","B")) -> B
A36: Ространснадзор | B36: 0.3396226415 | C36: 0.176470588 | D36: =IF(B36>=0.7,"A",IF(B36>0.4,"B","C")) -> C | E36: =IF(C36>=0.7,"A",IF(C36>0.4,"B","C")) -> C | F36: =IF(AND(D36="A",E36="A"),"A",IF(OR(D36="C",E36="C"),"C","B")) -> C
A37: Роструд | B37: 0.1698113208 | C37: 0.764705882 | D37: =IF(B37>=0.7,"A",IF(B37>0.4,"B","C")) -> C | E37: =IF(C37>=0.7,"A",IF(C37>0.4,"B","C")) -> A | F37: =IF(AND(D37="A",E37="A"),"A",IF(OR(D37="C",E37="C"),"C","B")) -> C
A38: Ростуризм | B38: 0.4716981132 | C38: 0.647058824 | D38: =IF(B38>=0.7,"A",IF(B38>0.4,"B","C")) -> B | E38: =IF(C38>=0.7,"A",IF(C38>0.4,"B","C")) -> B | F38: =IF(AND(D38="A",E38="A"),"A",IF(OR(D38="C",E38="C"),"C","B")) -> B
A39: Росфинмониторинг | B39: 0 | C39: 0 | D39: =IF(B39>=0.7,"A",IF(B39>0.4,"B","C")) -> C | E39: =IF(C39>=0.7,"A",IF(C39>0.4,"B","C")) -> C | F39: =IF(AND(D39="A",E39="A"),"A",IF(OR(D39="C",E39="C"),"C","B")) -> C
A40: СВР России | B40: 0 | C40: 0 | D40: =IF(B40>=0.7,"A",IF(B40>0.4,"B","C")) -> C | E40: =IF(C40>=0.7,"A",IF(C40>0.4,"B","C")) -> C | F40: =IF(AND(D40="A",E40="A"),"A",IF(OR(D40="C",E40="C"),"C","B")) -> C
A41: Управление делами Президента Российской Федерации | B41: 0.2639622642 | C41: 0 | D41: =IF(B41>=0.7,"A",IF(B41>0.4,"B","C")) -> C | E41: =IF(C41>=0.7,"A",IF(C41>0.4,"B","C")) -> C | F41: =IF(AND(D41="A",E41="A"),"A",IF(OR(D41="C",E41="C"),"C","B")) -> C
A42: ФАДН России | B42: 0.3773584906 | C42: 0.647058824 | D42: =IF(B42>=0.7,"A",IF(B42>0.4,"B","C")) -> C | E42: =IF(C42>=0.7,"A",IF(C42>0.4,"B","C")) -> B | F42: =IF(AND(D42="A",E42="A"),"A",IF(OR(D42="C",E42="C"),"C","B")) -> C
A43: ФАС России | B43: 0.7358490566 | C43: 0.823529412 | D43: =IF(B43>=0.7,"A",IF(B43>0.4,"B","C")) -> A | E43: =IF(C43>=0.7,"A",IF(C43>0.4,"B","C")) -> A | F43: =IF(AND(D43="A",E43="A"),"A",IF(OR(D43="C",E43="C"),"C","B")) -> A
A44: Федеральная служба судебных приставов (ФССП России) | B44: 0.5849056604 | C44: 0.352941176 | D44: =IF(B44>=0.7,"A",IF(B44>0.4,"B","C")) -> B | E44: =IF(C44>=0.7,"A",IF(C44>0.4,"B","C")) -> C | F44: =IF(AND(D44="A",E44="A"),"A",IF(OR(D44="C",E44="C"),"C","B")) -> C
A45: ФМБА России | B45: 0.03773584906 | C45: 0.588235294 | D45: =IF(B45>=0.7,"A",IF(B45>0.4,"B","C")) -> C | E45: =IF(C45>=0.7,"A",IF(C45>0.4,"B","C")) -> B | F45: =IF(AND(D45="A",E45="A"),"A",IF(OR(D45="C",E45="C"),"C","B")) -> C
A46: ФНС России | B46: 0.5660377358 | C46: 0.470588235 | D46: =IF(B46>=0.7,"A",IF(B46>0.4,"B","C")) -> B | E46: =IF(C46>=0.7,"A",IF(C46>0.4,"B","C")) -> B | F46: =IF(AND(D46="A",E46="A"),"A",IF(OR(D46="C",E46="C"),"C","B")) -> B
A47: ФСБ России | B47: 0.1132075472 | C47: 0 | D47: =IF(B47>=0.7,"A",IF(B47>0.4,"B","C")) -> C | E47: =IF(C47>=0.7,"A",IF(C47>0.4,"B","C")) -> C | F47: =IF(AND(D47="A",E47="A"),"A",IF(OR(D47="C",E47="C"),"C","B")) -> C
A48: ФСВТС России | B48: 0 | C48: 0 | D48: =IF(B48>=0.7,"A",IF(B48>0.4,"B","C")) -> C | E48: =IF(C48>=0.7,"A",IF(C48>0.4,"B","C")) -> C | F48: =IF(AND(D48="A",E48="A"),"A",IF(OR(D48="C",E48="C"),"C","B")) -> C
A49: ФСИН России | B49: 0.3396226415 | C49: 0.588235294 | D49: =IF(B49>=0.7,"A",IF(B49>0.4,"B","C")) -> C | E49: =IF(C49>=0.7,"A",IF(C49>0.4,"B","C")) -> B | F49: =IF(AND(D49="A",E49="A"),"A",IF(OR(D49="C",E49="C"),"C","B")) -> C
A50: ФСО России | B50: 0 | C50: 0 | D50: =IF(B50>=0.7,"A",IF(B50>0.4,"B","C")) -> C | E50: =IF(C50>=0.7,"A",IF(C50>0.4,"B","C")) -> C | F50: =IF(AND(D50="A",E50="A"),"A",IF(OR(D50="C",E50="C"),"C","B")) -> C
A51: ФСТЭК России | B51: 0 | C51: 0 | D51: =IF(B51>=0.7,"A",IF(B51>0.4,"B","C")) -> C | E51: =IF(C51>=0.7,"A",IF(C51>0.4,"B","C")) -> C | F51: =IF(AND(D51="A",E51="A"),"A",IF(OR(D51="C",E51="C"),"C","B")) -> C
A52: ФТС России | B52: 0.5094339623 | C52: 0 | D52: =IF(B52>=0.7,"A",IF(B52>0.4,"B","C")) -> B | E52: =IF(C52>=0.7,"A",IF(C52>0.4,"B","C")) -> C | F52: =IF(AND(D52="A",E52="A"),"A",IF(OR(D52="C",E52="C"),"C","B")) -> C

Sheet ОС Министерства
A2: Ведомство | B2: Наличие сайта, либо раздела ОС | C2: Информация о членах ОС | G2: Информация о работе ОС | N2: Доступность коммуникации с ОС | R2: Степень автономии ОС от ФОИВ | U2: Степень влияния ОС на деятельность ФОИВ | V2: Степень активности ОС | Z2: MAX: | AA2: 53
B3: Наличие сайта, либо раздела ОС | C3: Перечень лиц, входящих в состав общественного совета (ФИО) | D3: Указание на организацию/орган/учреждение, должности лиц, входящих в состав общественного совета | E3: Фотографии лиц, входящих в состав общественного совета | F3: Контактная информация членов общественного совета | G3: Положение об общественном совете | H3: Наличие на сайте органа власти отдельной новостной ленты, посвященной работе общественного совета | I3: План предстоящих заседаний общественного совета | J3: Повестки предстоящих заседаний общественного совета | K3: Протоколы прошедших заседаний общественного совета | L3: Тексты решений общественного совета, одобренных на заседаниях общественного совета | M3: Перечень рабочих групп (комиссий либо иных подразделений) в составе общественного совета | N3: Текст правового акта о порядке участия в открытых заседаниях общественного совета | O3: Возможность обращения в общественный совет (его структурное подразделение) через сайт | P3: Возможность задать вопрос членам общественного совета на сайте | Q3: Наличие на сайте открытой дискуссионной площадки для обсуждения предложений и заключений общественного совета по разрабатываемым органом власти проектам НПА, документам и инициативам (чат, форум) | R3: Наличие норм в Положении об ОС о необходимости формирования большей части состава ОС из представителей НКО. Насколько процедура формирвования состава в Положении обеспечивает независимость ОС от ФОИВ | S3: Состав ОС - наличие общественных деятелей, представителей НКО | T3: Отсутствие сообщений в СМИ о нарушениях в работе ОС, о вмешательстве ФОИВ в работу ОС | U3: Включение руководителя, заместителя руководителя ОС в состав Коллегии министерства | V3: Сколько раз проводились заседания в течение прошедшего года | W3: Проводились ли очные заседания (наличие материалов, указывающих на очную форму участия членов в заседаниях) | X3: Выражали ли члены ОС позицию по наиболее резонансным вопросам деятельности ведомства в публичном пространстве, в том числе в СМИ | Y3: Приглашаются ли на заседания СМИ и общественность | Z3: Сумма
A4: МВД России | B4: 2 | C4: 1 | D4: 3 | E4: 3 | F4: 0 | G4: 1 | H4: 3 | I4: 2 | J4: 2 | K4: 2 | L4: 1 | M4: 1 | N4: 1 | O4: 0 | P4: 0 | Q4: 0 | R4: 1 | S4: 1 | T4: 1 | U4: 0 | V4: 2 | W4: 3 | X4: 1 | Y4: 0 | Z4: =SUM(B4:Y4) -> 31 | AA4: =Z4/$AA$2 -> 0.5849056604
A5: МИД России | B5: 0 | C5: 0 | D5: 0 | E5: 0 | F5: 0 | G5: 0 | H5: 0 | I5: 0 | J5: 0 | K5: 0 | L5: 0 | M5: 0 | N5: 0 | O5: 0 | P5: 0 | Q5: 0 | R5: 0 | S5: 0 | T5: 0 | U5: 0 | V5: 0 | W5: 0 | X5: 0 | Y5: 0 | Z5: 0 | AA5: 0
A6: Минвостокразвития России | B6: 1 | C6: 0 | D6: 0 | E6: 0 | F6: 0 | G6: 1 | H6: 0 | I6: 0 | J6: 0 | K6: 0 | L6: 0 | M6: 0 | N6: 1 | O6: 0 | P6: 0 | Q6: 0 | R6: 1 | S6: 0 | T6: 1 | U6: 0 | V6: 0 | W6: 0 | X6: 2 | Y6: 0 | Z6: 7 | AA6: 0.1320754717
A7: Минздрав России | B7: 1 | C7: 1 | D7: 3 | E7: 1 | F7: 0 | G7: 1 | H7: 0 | I7: 0 | J7: 0 | K7: 3 | L7: 1 | M7: 0 | N7: 0 | O7: 0 | P7: 0 | Q7: 0 | R7: 3 | S7: 3 | T7: 1 | U7: 0 | V7: 3 | W7: 3 | X7: 0 | Y7: 0 | Z7: 24 | AA7: 0.4528301887
A8: Минкомсвязь России | B8: 1 | C8: 0 | D8: 0 | E8: 0 | F8: 0 | G8: 1 | H8: 0 | I8: 0 | J8: 0 | K8: 0 | L8: 0 | M8: 0 | N8: 1 | O8: 0 | P8: 0 | Q8: 0 | R8: 1 | S8: 0 | T8: 1 | U8: 0 | V8: 0 | W8: 0 | X8: 0 | Y8: 0 | Z8: 5 | AA8: 0.09433962264
A9: Минкультуры России | B9: 1 | C9: 1 | D9: 3 | E9: 1 | F9: 0 | G9: 1 | H9: 1 | I9: 3 | J9: 3 | K9: 3 | L9: 0 | M9: 2 | N9: 0 | O9: 1 | P9: 1 | Q9: 0 | R9: 3 | S9: 3 | T9: 1 | U9: 1 | V9: 3 | W9: 3 | X9: 2 | Y9: 0 | Z9: 37 | AA9: 0.6981132075
A10: Минобороны России | B10: 1 | C10: 1 | D10: 3 | E10: 0 | F10: 0 | G10: 1 | H10: 0 | I10: 0 | J10: 0 | K10: 0 | L10: 0 | M10: 0 | N10: 0 | O10: 0 | P10: 0 | Q10: 0 | R10: 0 | S10: 1 | T10: 1 | U10: 0 | V10: 0 | W10: 0 | X10: 1 | Y10: 0 | Z10: 9 | AA10: 0.1698113208
A11: Минобрнауки России | B11: 1 | C11: 1 | D11: 3 | E11: 3 | F11: 0 | G11: 1 | H11: 3 | I11: 0 | J11: 0 | K11: 0 | L11: 0 | M11: 0 | N11: 1 | O11: 0 | P11: 0 | Q11: 0 | R11: 2 | S11: 3 | T11: 1 | U11: 0 | V11: 3 | W11: 3 | X11: 0 | Y11: 0 | Z11: 25 | AA11: 0.4716981132
A12: Минприроды России | B12: 1 | C12: 1 | D12: 1 | E12: 3 | F12: 0 | G12: 1 | H12: 1 | I12: 3 | J12: 0 | K12: 0 | L12: 1 | M12: 0 | N12: 1 | O12: 0 | P12: 0 | Q12: 0 | R12: 2 | S12: 3 | T12: 1 | U12: 0 | V12: 3 | W12: 3 | X12: 2 | Y12: 0 | Z12: 27 | AA12: 0.5094339623
A13: Минпромторг России | B13: 1 | C13: 1 | D13: 3 | E13: 1 | F13: 0 | G13: 1 | H13: 0 | I13: 0 | J13: 0 | K13: 0 | L13: 0 | M13: 0 | N13: 1 | O13: 0 | P13: 0 | Q13: 0 | R13: 3 | S13: 1 | T13: 1 | U13: 0 | V13: 0 | W13: 0 | X13: 0 | Y13: 0 | Z13: 13 | AA13: 0.2452830189
A14: Минпросвещения России | B14: 1 | C14: 1 | D14: 3 | E14: 0 | F14: 0 | G14: 1 | H14: 0 | I14: 0 | J14: 0 | K14: 0 | L14: 0 | M14: 0 | N14: 1 | O14: 0 | P14: 0 | Q14: 0 | R14: 3 | S14: 0 | T14: 1 | U14: 0 | V14: 0 | W14: 0 | X14: 0 | Y14: 0 | Z14: 11 | AA14: 0.2075471698
A15: Минсельхоз России | B15: 0 | C15: 1 | D15: 3 | E15: 0 | F15: 0 | G15: 0 | H15: 0 | I15: 0 | J15: 0 | K15: 0 | L15: 0 | M15: 0 | N15: 0 | O15: 0 | P15: 0 | Q15: 0 | R15: 2 | S15: 1 | T15: 1 | U15: 1 | V15: 0 | W15: 0 | X15: 0 | Y15: 0 | Z15: 9 | AA15: 0.1698113208
A16: Минспорт России | B16: 2 | C16: 1 | D16: 3 | E16: 3 | F16: 0 | G16: 1 | H16: 3 | I16: 0 | J16: 0 | K16: 3 | L16: 1 | M16: 3 | N16: 1 | O16: 1 | P16: 0 | Q16: 0 | R16: 2 | S16: 3 | T16: 1 | U16: 2 | V16: 3 | W16: 3 | X16: 0 | Y16: 1 | Z16: 37 | AA16: 0.6981132075
A17: Минстрой России | B17: 2 | C17: 1 | D17: 3 | E17: 3 | F17: 0 | G17: 1 | H17: 3 | I17: 3 | J17: 0 | K17: 0 | L17: 0 | M17: 3 | N17: 1 | O17: 1 | P17: 1 | Q17: 0 | R17: 2 | S17: 2 | T17: 1 | U17: 2 | V17: 3 | W17: 3 | X17: 2 | Y17: 1 | Z17: 38 | AA17: 0.7169811321
A18: Минтранс России | B18: 1 | C18: 1 | D18: 3 | E18: 1 | F18: 0 | G18: 1 | H18: 1 | I18: 0 | J18: 0 | K18: 1 | L18: 1 | M18: 2 | N18: 1 | O18: 0 | P18: 0 | Q18: 0 | R18: 1 | S18: 2 | T18: 1 | U18: 2 | V18: 1 | W18: 3 | X18: 2 | Y18: 0 | Z18: 25 | AA18: 0.4716981132
A19: Минтруд России | B19: 1 | C19: 1 | D19: 1 | E19: 1 | F19: 1 | G19: 1 | H19: 3 | I19: 0 | J19: 0 | K19: 0 | L19: 0 | M19: 3 | N19: 1 | O19: 1 | P19: 0 | Q19: 0 | R19: 2 | S19: 3 | T19: 1 | U19: 2 | V19: 3 | W19: 3 | X19: 0 | Y19: 1 | Z19: 29 | AA19: 0.5471698113
A20: Минфин России | B20: 1 | C20: 1 | D20: 3 | E20: 3 | F20: 0 | G20: 1 | H20: 1 | I20: 0 | J20: 3 | K20: 3 | L20: 1 | M20: 1 | N20: 1 | O20: 0 | P20: 0 | Q20: 0 | R20: 2 | S20: 2 | T20: 1 | U20: 0 | V20: 3 | W20: 1 | X20: 0 | Y20: 0 | Z20: 28 | AA20: 0.5283018868
A21: Минэкономразвития России | B21: 1 | C21: 1 | D21: 2 | E21: 0 | F21: 0 | G21: 1 | H21: 0 | I21: 0 | J21: 0 | K21: 3 | L21: 1 | M21: 0 | N21: 1 | O21: 1 | P21: 0 | Q21: 0 | R21: 2 | S21: 3 | T21: 1 | U21: 0 | V21: 3 | W21: 0 | X21: 0 | Y21: 0 | Z21: 20 | AA21: 0.3773584906
A22: Минэнерго России | B22: 1 | C22: 1 | D22: 3 | E22: 3 | F22: 0 | G22: 0 | H22: 0 | I22: 0 | J22: 0 | K22: 3 | L22: 1 | M22: 3 | N22: 0 | O22: 0 | P22: 0 | Q22: 0 | R22: 2 | S22: 2 | T22: 1 | U22: 0 | V22: 3 | W22: 1 | X22: 0 | Y22: 0 | Z22: 24 | AA22: 0.4528301887
A23: Минюст России | B23: 1 | C23: 1 | D23: 3 | E23: 0 | F23: 0 | G23: 1 | H23: 0 | I23: 0 | J23: 0 | K23: 0 | L23: 0 | M23: 0 | N23: 0 | O23: 0 | P23: 0 | Q23: 0 | R23: 0 | S23: 0 | T23: 1 | U23: 0 | V23: 0 | W23: 0 | X23: 0 | Y23: 0 | Z23: 7 | AA23: 0.1320754717
A24: МЧС России | B24: 1 | C24: 1 | D24: 0 | E24: 0 | F24: 0 | G24: 1 | H24: 0 | I24: 2 | J24: 1 | K24: 3 | L24: 1 | M24: 0 | N24: 1 | O24: 0 | P24: 0 | Q24: 0 | R24: 0 | S24: 2 | T24: 1 | U24: 0 | V24: 1 | W24: 3 | X24: 0 | Y24: 1 | Z24: 19 | AA24: 0.358490566

Sheet СС Министерства
A1: Ведомство | B1: VK | C1: FB | D1: OK | E1: Inst | F1: has_sm_account | G1: has_contacts_ sm | H1: period_post | I1: Erpost_VK | J1: TR _VK | K1: Erpost_Fb | L1: TR_Fb | M1: Erpost_Ок | N1: TR_Ok | O1: Erpost_Inst | P1: TR_Inst | Q1: ER_post_rate | R1: TR_rate | S1: sm_feedback | T1: sm_feedback_content | U1: sm_feedback_content_dtl | V1: Total
A2: МВД России | B2: https://vk.com/mvd (205 928) | C2: https://www.facebook.com/mvd.official (17 083) | D2: http://ok.ru/mvd (197007) | E2: https://www.instagram.com/mvd.russia/ (224 170) | F2: 3 | G2: 1 | H2: 2 | I2: 0.114 | J2: 0 | K2: 0.421 | L2: 0.02 | M2: 0.078 | N2: 0 | O2: 0.715 | P2: 0.005 | Q2: 2 | R2: 2 | S2: 1 | T2: 0 | U2: 0 (Инстаграм) | V2: =SUM(Q2:T2,H2,G2,F2) -> 11 | W2: =$V2/[1]Коды!$D$28 -> 0.6470588235
A3: МИД России | B3: https://vk.com/mid (406 405) | C3: https://www.facebook.com/MIDRussia (392 427) | D3: нет аккаунта | E3: https://www.instagram.com/mid.rus/ (271 008) | F3: 1 | G3: 1 | H3: 2 | I3: 0.015 | J3: 0.002 | K3: 0.042 | L3: 0.003 | M3: 0 | N3: 0 | O3: 0.468 | P3: 0.01 | Q3: 1 | R3: 1 | S3: 1 | T3: 0 | U3: 0 (ВКонтакте) | V3: 7 | W3: =V3/[1]Коды!$D$28 -> 0.4117647059
A4: Минвостокразвития России | B4: нет аккаунта | C4: https://www.facebook.com/MinVostok (5 017) | D4: нет аккаунта | E4: https://www.instagram.com/minvostok/ (2 537) | F4: 1 | G4: 0 | H4: 2 | I4: 0 | J4: 0 | K4: 0.32 | L4: 0.007 | M4: 0 | N4: 0 | O4: 2.965 | P4: 0.119 | Q4: 3 | R4: 3 | S4: 0 | T4: 0 | U4: 0 (нельзя написать сообщение) | V4: 9 | W4: =V4/[1]Коды!$D$28 -> 0.5294117647
A5: Минздрав России | B5: https://vk.com/public114069515 (86 431) | C5: https://www.facebook.com/MinzdravRu/ (23 974) | D5: https://ok.ru/minzdravru (142201) | E5: нет аккаунта | F5: 1 | G5: 0 | H5: 2 | I5: 0.556 | J5: 0 | K5: 0.345 | L5: 0.034 | M5: 0.177 | N5: 0.015 | O5: 0 | P5: 0 | Q5: 2 | R5: 1 | S5: 1 | T5: 0 | U5: 0 (Одноклассники) | V5: 7 | W5: =V5/[1]Коды!$D$28 -> 0.4117647059
A6: Минкомсвязь России | B6: нет аккаунта | C6: https://www.facebook.com/minsvyaz.place (4 895) | D6: нет аккаунта | E6: нет аккаунта | F6: 1 | G6: 1 | H6: 2 | I6: 0.51 | J6: 0.011 | K6: 0 | L6: 0 | M6: 0 | N6: 0 | O6: 0 | P6: 0 | Q6: 2 | R6: 1 | S6: 1 | T6: 0 | U6: 0 (Фейсбук) | V6: 8 | W6: =$V6/[1]Коды!$D$28 -> 0.4705882353
A7: Минкультуры России | B7: https://vk.com/club56049514 (33 962 | C7: https://www.facebook.com/minkultrf (10 352) | D7: https://ok.ru/mkrf/ (49970) | E7: https://www.instagram.com/mincult_russia/?hl=ru (84 404) | F7: 3 | G7: 1 | H7: 2 | I7: 0.183 | J7: 0.004 | K7: 0.49 | L7: 0.013 | M7: 0.065 | N7: 0.002 | O7: 0.541 | P7: 0.011 | Q7: 2 | R7: 2 | S7: 1 | T7: 2 | U7: 2 (Инстаграм) | V7: 13 | W7: =$V7/[1]Коды!$D$28 -> 0.7647058824
A8: Минобороны России | B8: http://vk.com/mil (413 954) | C8: https://www.facebook.com/pages/Минобороны-России/1492252324350852 (233 056) | D8: https://ok.ru/mil (45575) | E8: http://instagram.com/mil_ru (402 034) | F8: 3 | G8: 1 | H8: 2 | I8: 0.083 | J8: 0.004 | K8: 0.165 | L8: 0.006 | M8: 0.078 | N8: 0.003 | O8: 1.041 | P8: 0.014 | Q8: 3 | R8: 1 | S8: 2 | T8: 0 | U8: 0 (ВКонтакте) | V8: 12 | W8: =V8/[1]Коды!$D$28 -> 0.7058823529
A9: Минобрнауки России | B9: https://vk.com/minobrnauki (8 942) | C9: https://www.facebook.com/minobrnaukigov/ (1 282) | D9: нет аккаунта | E9: https://www.instagram.com/minobrnauki_russia/ (16 287) | F9: 1 | G9: 1 | H9: 2 | I9: 0.35 | J9: 0.008 | K9: 2.07 | L9: 0.046 | M9: 0 | N9: 0 | O9: 0.778 | P9: 0.021 | Q9: 3 | R9: 2 | S9: 1 | T9: 2 | U9: 2 (Фейсбук) | V9: 12 | W9: =V9/[1]Коды!$D$28 -> 0.7058823529
A10: Минприроды России | B10: нет аккаунта | C10: https://www.facebook.com/mnr.gov (6 451) | D10: нет аккаунта | E10: нет аккаунта | F10: 1 | G10: 0 | H10: 2 | I10: 0 | J10: 0 | K10: 0.927 | L10: 0.032 | M10: 0 | N10: 0 | O10: 0 | P10: 0 | Q10: 2 | R10: 1 | S10: 0 | T10: 0 | U10: 0 (нельзя написать сообщение) | V10: 6 | W10: =V10/[1]Коды!$D$28 -> 0.3529411765
A11: Минпромторг России | B11: http://vk.com/minpromtorgrus (22 312) | C11: http://www.facebook.com/minpromtorg (32 240) | D11: нет аккаунта | E11: http://instagram.com/minpromtorg (50 411) | F11: 1 | G11: 0 | H11: 2 | I11: 0.122 | J11: 0.006 | K11: 0.107 | L11: 0.004 | M11: 0 | N11: 0 | O11: 0.759 | P11: 0.014 | Q11: 2 | R11: 1 | S11: 1 | T11: 2 | U11: 2 (Инстаграм) | V11: 9 | W11: =V11/[1]Коды!$D$28 -> 0.5294117647
A12: Минпросвещения России | B12: https://vk.com/minprosvet (273 956) | C12: https://www.facebook.com/minprosvet (25 559) | D12: https://ok.ru/minprosvet (111051) | E12: https://www.instagram.com/minprosvet/ (92 622) | F12: 3 | G12: 1 | H12: 2 | I12: 0.27 | J12: 0.009 | K12: 0.226 | L12: 0.009 | M12: 0.049 | N12: 0.002 | O12: 0.527 | P12: 0.009 | Q12: 2 | R12: 1 | S12: 1 | T12: 0 | U12: 0 (ВКонтакте) | V12: 10 | W12: =V12/[1]Коды!$D$28 -> 0.5882352941
A13: Минсельхоз России | B13: https://vk.com/minselhoz (5 506) | C13: https://www.facebook.com/pages/Министерство-сельского-хозяйства-Российской-Федерации/162754797121848 (5 845) | D13: https://ok.ru/group/58417191780400 (1431) | E13: https://www.instagram.com/mcx_rf/ (31 079) | F13: 3 | G13: 1 | H13: 2 | I13: 0.953 | J13: 0.018 | K13: 1.113 | L13: 0.027 | M13: 0.13 | N13: 0.002 | O13: 1.17 | P13: 0.014 | Q13: 3 | R13: 1 | S13: 1 | T13: 0 | U13: 0 (Инстаграм) | V13: 11 | W13: =$V13/[1]Коды!$D$28 -> 0.6470588235
A14: Минспорт России | B14: https://vk.com/minsportrf (31 179) | C14: https://www.facebook.com/minsportrf/ (932) | D14: нет аккаунта | E14: https://www.instagram.com/minsport_rf/ (25 122) | F14: 1 | G14: 0 | H14: 2 | I14: 0.269 | J14: 0.086 | K14: 1.215 | L14: 0.023 | M14: 0 | N14: 0 | O14: 1.196 | P14: 0.025 | Q14: 3 | R14: 2 | S14: 1 | T14: 1 | U14: 1 (Вконтакте, 13.05) | V14: 10 | W14: =V14/[1]Коды!$D$28 -> 0.5882352941
A15: Минстрой России | B15: http://vk.com/minstroyrfofficial (10 055) | C15: https://www.facebook.com/minstroyrf (16 384) | D15: http://ok.ru/group/53598208065632 (28459) | E15: https://www.instagram.com/minstroyrf/ (31 710) | F15: 3 | G15: 1 | H15: 2 | I15: 0.351 | J15: 0 | K15: 0.351 | L15: 0.029 | M15: 0.038 | N15: 0.002 | O15: 0.91 | P15: 0.041 | Q15: 2 | R15: 2 | S15: 1 | T15: 0 | U15: 0 (Инстаграм) | V15: 11 | W15: =V15/[1]Коды!$D$28 -> 0.6470588235
A16: Минтранс России | B16: https://vk.com/mintransrussia (1 476) | C16: https://www.facebook.com/MintransRussia (1992) | D16: нет аккаунта | E16: https://instagram.com/mintransrussia/ (21 235) | F16: 1 | G16: 1 | H16: 2 | I16: 0.572 | J16: 0.029 | K16: 0.594 | L16: 0.022 | M16: 0 | N16: 0 | O16: 0.973 | P16: 0 | Q16: 2 | R16: 1 | S16: 1 | T16: 0 | U16: 0 (Инстаграм) | V16: 8 | W16: =V16/[1]Коды!$D$28 -> 0.4705882353
A17: Минтруд России | B17: нет аккаунта | C17: нет аккаунта | D17: нет аккаунта | E17: нет аккаунта | F17: 1 | G17: 0 | H17: 0 | I17: 0 | J17: 0 | K17: 0 | L17: 0 | M17: 0 | N17: 0 | O17: 0 | P17: 0 | Q17: 0 | R17: 0 | S17: 0 | T17: 0 | U17: 0 (нельзя написать сообщение) | V17: 1 | W17: =V17/[1]Коды!$D$28 -> 0.05882352941
A18: Минфин России | B18: https://vk.com/ruminfin (4 804) | C18: https://www.facebook.com/ruMinFin (4 854) | D18: нет аккаунта | E18: https://www.instagram.com/ruminfin/ (57 855) | F18: 1 | G18: 1 | H18: 2 | I18: 0.504 | J18: 0.014 | K18: 0.495 | L18: 0.019 | M18: 0 | N18: 0 | O18: 0.541 | P18: 0.011 | Q18: 2 | R18: 1 | S18: 1 | T18: 0 | U18: 0 (Инстаграм) | V18: 8 | W18: =V18/[1]Коды!$D$28 -> 0.4705882353
A19: Минэкономразвития России | B19: https://vk.com/ministryeconomy (4 331) | C19: http://www.facebook.com/MinistryEconomy (14 199) | D19: нет аккаунта | E19: https://www.instagram.com/minec_russia/ (24 249) | F19: 1 | G19: 1 | H19: 2 | I19: 0.288 | J19: 0.013 | K19: 0.253 | L19: 0.012 | M19: 0 | N19: 0 | O19: 1.147 | P19: 0.026 | Q19: 3 | R19: 1 | S19: 1 | T19: 0 | U19: 0 (Инстаграм) | V19: 9 | W19: =V19/[1]Коды!$D$28 -> 0.5294117647
A20: Минэнерго России | B20: нет аккаунта | C20: http://www.facebook.com/Minenergo.Gov (5 231) | D20: нет аккаунта | E20: https://www.instagram.com/minenergogov/ (21 908) | F20: 1 | G20: 1 | H20: 2 | I20: 0 | J20: 0 | K20: 0.548 | L20: 0.025 | M20: 0 | N20: 0 | O20: 2.213 | P20: 0.048 | Q20: 3 | R20: 1 | S20: 1 | T20: 0 | U20: 0 (Инстаграм) | V20: 9 | W20: =V20/[1]Коды!$D$28 -> 0.5294117647
A21: Минюст России | B21: нет аккаунта | C21: нет аккаунта | D21: нет аккаунта | E21: нет аккаунта | F21: 0 | G21: 0 | H21: 0 | I21: 0 | J21: 0 | K21: 0 | L21: 0 | M21: 0 | N21: 0 | O21: 0 | P21: 0 | Q21: 0 | R21: 0 | S21: 0 | T21: 0 | U21: 0 (нельзя написать сообщение) | V21: 0 | W21: =V21/[1]Коды!$D$28 -> 0
A22: МЧС России | B22: https://vk.com/mchs__russia (208 423) | C22: https://www.facebook.com/MchsRussia/?fref=ts (22 914) | D22: http://ok.ru/mchsrussia (57613) | E22: http://instagram.com/mchs.russia (111 245) | F22: 3 | G22: 1 | H22: 2 | I22: 0.09 | J22: 0.003 | K22: 0.122 | L22: 0.002 | M22: 0.047 | N22: 0.001 | O22: 0.872 | P22: 0.012 | Q22: 2 | R22: 1 | S22: 2 | T22: 0 | U22: 0 (ВКонтакте) | V22: 11 | W22: =V22/[1]Коды!$D$28 -> 0.6470588235

Sheet ОС Службы
A2: Ведомство | B2: Наличие сайта, либо раздела ОС | C2: Информация о членах ОС | G2: Информация о работе ОС | N2: Доступность коммуникации с ОС | R2: Степень автономии ОС от ФОИВ | U2: Степень влияния ОС на деятельность ФОИВ | V2: Степень активности ОС | Z2: MAX: | AA2: 53
B3: Наличие сайта, либо раздела ОС | C3: Перечень лиц, входящих в состав общественного совета (ФИО) | D3: Указание на организацию/орган/учреждение, должности лиц, входящих в состав общественного совета | E3: Фотографии лиц, входящих в состав общественного совета | F3: Контактная информация членов общественного совета | G3: Положение об общественном совете | H3: Наличие на сайте органа власти отдельной новостной ленты, посвященной работе общественного совета | I3: План предстоящих заседаний общественного совета | J3: Повестки предстоящих заседаний общественного совета | K3: Протоколы прошедших заседаний общественного совета | L3: Тексты решений общественного совета, одобренных на заседаниях общественного совета | M3: Перечень рабочих групп (комиссий либо иных подразделений) в составе общественного совета | N3: Текст правового акта о порядке участия в открытых заседаниях общественного совета | O3: Возможность обращения в общественный совет (его структурное подразделение) через сайт | P3: Возможность задать вопрос членам общественного совета на сайте | Q3: Наличие на сайте открытой дискуссионной площадки для обсуждения предложений и заключений общественного совета по разрабатываемым органом власти проектам НПА, документам и инициативам (чат, форум) | R3: Наличие норм в Положении об ОС о необходимости формирования большей части состава ОС из представителей НКО. Насколько процедура формирвования состава в Положении обеспечивает независимость ОС от ФОИВ | S3: Состав ОС - наличие общественных деятелей, представителей НКО | T3: Отсутствие сообщений в СМИ о нарушениях в работе ОС, о вмешательстве ФОИВ в работу ОС | U3: Включение руководителя, заместителя руководителя ОС в состав Коллегии министерства | V3: Сколько раз проводились заседания в течение прошедшего года | W3: Проводились ли очные заседания (наличие материалов, указывающих на очную форму участия членов в заседаниях) | X3: Выражали ли члены ОС позицию по наиболее резонансным вопросам деятельности ведомства в публичном пространстве, в том числе в СМИ | Y3: Приглашаются ли на заседания СМИ и общественность | Z3: Сумма
A4: Главное управление специальных программ Президента Российской Федерации (ГУСП) | B4: 0 | C4: 0 | D4: 0 | E4: 0 | F4: 0 | G4: 0 | H4: 0 | I4: 0 | J4: 0 | K4: 0 | L4: 0 | M4: 0 | N4: 0 | O4: 0 | P4: 0 | Q4: 0 | R4: 0 | S4: 0 | T4: 0 | U4: 0 | V4: 0 | W4: 0 | X4: 0 | Y4: 0 | Z4: =SUM(B4:Y4) -> 0 | AA4: =Z4/$AA$2 -> 0
A5: Государственная фельдъегерская служба Российской Федерации (ГФС России) | B5: 0 | C5: 0 | D5: 0 | E5: 0 | F5: 0 | G5: 0 | H5: 0 | I5: 0 | J5: 0 | K5: 0 | L5: 0 | M5: 0 | N5: 0 | O5: 0 | P5: 0 | Q5: 0 | R5: 0 | S5: 0 | T5: 0 | U5: 0 | V5: 0 | W5: 0 | X5: 0 | Y5: 0 | Z5: 0 | AA5: 0
A6: Казначейство России | B6: 1 | C6: 1 | D6: 3 | E6: 3 | F6: 3 | G6: 0 | H6: 0 | I6: 0 | J6: 1 | K6: 3 | L6: 1 | M6: 0 | N6: 1 | O6: 0 | P6: 0 | Q6: 0 | R6: 0 | S6: 3 | T6: 1 | U6: 0 | V6: 1 | W6: 2 | X6: 0 | Y6: 0 | Z6: 24 | AA6: 0.4528301887
A7: Росавиация | B7: 1 | C7: 1 | D7: 1 | E7: 1 | F7: 0 | G7: 1 | H7: 0 | I7: 3 | J7: 0 | K7: 3 | L7: 1 | M7: 0 | N7: 1 | O7: 0 | P7: 0 | Q7: 0 | R7: 0 | S7: 1 | T7: 0 | U7: 0 | V7: 2 | W7: 3 | X7: 1 | Y7: 0 | Z7: 20 | AA7: 0.3773584906
A8: Росавтодор | B8: 2 | C8: 1 | D8: 3 | E8: 3 | F8: 3 | G8: 1 | H8: 3 | I8: 0 | J8: 0 | K8: 3 | L8: 1 | M8: 2 | N8: 2 | O8: 0 | P8: 0 | Q8: 2 | R8: 0 | S8: 1 | T8: 1 | U8: 2 | V8: 1 | W8: 3 | X8: 0 | Y8: 1 | Z8: 35 | AA8: 0.6603773585
A9: Росаккредитация | B9: 1 | C9: 1 | D9: 1 | E9: 0 | F9: 1 | G9: 1 | H9: 3 | I9: 0 | J9: 0 | K9: 2 | L9: 0 | M9: 2 | N9: 1 | O9: 0 | P9: 0 | Q9: 0 | R9: 3 | S9: 1 | T9: 1 | U9: 1 | V9: 1 | W9: 2 | X9: 0 | Y9: 1 | Z9: 23 | AA9: 0.4339622642
A10: Росалкогольрегулирование | B10: 1 | C10: 1 | D10: 1 | E10: 0 | F10: 0 | G10: 1 | H10: 0 | I10: 0 | J10: 0 | K10: 2 | L10: 0 | M10: 0 | N10: 1 | O10: 0 | P10: 0 | Q10: 0 | R10: 0 | S10: 1 | T10: 1 | U10: 0 | V10: 0 | W10: 2 | X10: 2 | Y10: 0 | Z10: 13 | AA10: 0.2452830189
A11: Росархив | B11: 1 | C11: 1 | D11: 3 | E11: 3 | F11: 3 | G11: 1 | H11: 3 | I11: 3 | J11: 2 | K11: 3 | L11: 1 | M11: 0 | N11: 1 | O11: 1 | P11: 1 | Q11: 1 | R11: 0 | S11: 3 | T11: 1 | U11: 2 | V11: 1 | W11: 2 | X11: 0 | Y11: 1 | Z11: 38 | AA11: 0.7169811321
A12: Росводресурсы | B12: 1 | C12: 1 | D12: 3 | E12: 0 | F12: 0 | G12: 1 | H12: 0 | I12: 0 | J12: 0 | K12: 2 | L12: 0 | M12: 0 | N12: 1 | O12: 0 | P12: 0 | Q12: 0 | R12: 0 | S12: 1 | T12: 1 | U12: 0 | V12: 2 | W12: 3 | X12: 0 | Y12: 0 | Z12: 16 | AA12: 0.3018867925
A13: Росгвардия | B13: 0 | C13: 0 | D13: 0 | E13: 0 | F13: 0 | G13: 0 | H13: 0 | I13: 0 | J13: 0 | K13: 0 | L13: 0 | M13: 0 | N13: 0 | O13: 0 | P13: 0 | Q13: 0 | R13: 0 | S13: 0 | T13: 0 | U13: 0 | V13: 0 | W13: 0 | X13: 0 | Y13: 0 | Z13: 0 | AA13: 0
A14: Росгидромет | B14: 1 | C14: 1 | D14: 1 | E14: 0 | F14: 0 | G14: 1 | H14: 3 | I14: 2 | J14: 3 | K14: 3 | L14: 1 | M14: 0 | N14: 1 | O14: 0 | P14: 0 | Q14: 0 | R14: 0 | S14: 1 | T14: 1 | U14: 2 | V14: 3 | W14: 3 | X14: 1 | Y14: 0 | Z14: 28 | AA14: 0.5283018868
A15: Росжелдор | B15: 1 | C15: 1 | D15: 3 | E15: 3 | F15: 0 | G15: 1 | H15: 0 | I15: 1 | J15: 0 | K15: 3 | L15: 1 | M15: 2 | N15: 1 | O15: 0 | P15: 0 | Q15: 0 | R15: 0 | S15: 2 | T15: 1 | U15: 2 | V15: 1 | W15: 3 | X15: 0 | Y15: 1 | Z15: 27 | AA15: 0.5094339623
A16: Росздравнадзор | B16: 1 | C16: 1 | D16: 1 | E16: 0 | F16: 0 | G16: 1 | H16: 3 | I16: 2 | J16: 0 | K16: 0 | L16: 0 | M16: 2 | N16: 1 | O16: 0 | P16: 0 | Q16: 0 | R16: 0 | S16: 1 | T16: 1 | U16: 2 | V16: 1 | W16: 3 | X16: 0 | Y16: 0 | Z16: 20 | AA16: 0.3773584906
A17: Росимущество | B17: 1 | C17: 1 | D17: 3 | E17: 2 | F17: 0 | G17: 1 | H17: 2 | I17: 0 | J17: 0 | K17: 3 | L17: 1 | M17: 0 | N17: 1 | O17: 0 | P17: 0 | Q17: 0 | R17: 0 | S17: 3 | T17: 1 | U17: 0 | V17: 3 | W17: 1 | X17: 0 | Y17: 0 | Z17: 23 | AA17: 0.4339622642
A18: Роскомнадзор | B18: 1 | C18: 1 | D18: 3 | E18: 0 | F18: 0 | G18: 1 | H18: 0 | I18: 0 | J18: 0 | K18: 0 | L18: 0 | M18: 0 | N18: 2 | O18: 0 | P18: 0 | Q18: 0 | R18: 0 | S18: 1 | T18: 1 | U18: 2 | V18: 0 | W18: 0 | X18: 0 | Y18: 0 | Z18: 12 | AA18: 0.2264150943
A19: Рослесхоз | B19: 1 | C19: 1 | D19: 1 | E19: 0 | F19: 0 | G19: 1 | H19: 1 | I19: 0 | J19: 0 | K19: 3 | L19: 1 | M19: 2 | N19: 1 | O19: 1 | P19: 0 | Q19: 0 | R19: 0 | S19: 1 | T19: 1 | U19: 0 | V19: 3 | W19: 3 | X19: 1 | Y19: 1 | Z19: 23 | AA19: 0.4339622642
A20: Росмолодёжь | B20: 1 | C20: 1 | D20: 1 | E20: 1 | F20: 0 | G20: 1 | H20: 1 | I20: 0 | J20: 0 | K20: 1 | L20: 1 | M20: 1 | N20: 1 | O20: 0 | P20: 0 | Q20: 0 | R20: 0 | S20: 1 | T20: 1 | U20: 0 | V20: 1 | W20: 1 | X20: 0 | Y20: 0 | Z20: 14 | AA20: 0.2641509434
A21: Росморречфлот | B21: 1 | C21: 1 | D21: 3 | E21: 1 | F21: 0 | G21: 1 | H21: 0 | I21: 0 | J21: 0 | K21: 1 | L21: 1 | M21: 3 | N21: 1 | O21: 1 | P21: 0 | Q21: 0 | R21: 3 | S21: 1 | T21: 1 | U21: 2 | V21: 1 | W21: 1 | X21: 0 | Y21: 0 | Z21: 23 | AA21: 0.4339622642
A22: Роснедра | B22: 1 | C22: 1 | D22: 1 | E22: 3 | F22: 0 | G22: 1 | H22: 0 | I22: 0 | J22: 0 | K22: 3 | L22: 1 | M22: 0 | N22: 1 | O22: 1 | P22: 0 | Q22: 0 | R22: 2 | S22: 1 | T22: 1 | U22: 0 | V22: 1 | W22: 3 | X22: 0 | Y22: 0 | Z22: 21 | AA22: 0.3962264151
A23: Рособрнадзор | B23: 1 | C23: 1 | D23: 3 | E23: 0 | F23: 0 | G23: 1 | H23: 0 | I23: 0 | J23: 0 | K23: 1 | L23: 1 | M23: 0 | N23: 1 | O23: 0 | P23: 0 | Q23: 0 | R23: 0 | S23: 3 | T23: 1 | U23: 0 | V23: 1 | W23: 3 | X23: 0 | Y23: 0 | Z23: 17 | AA23: 0.320754717
A24: Роспатент | B24: 1 | C24: 1 | D24: 3 | E24: 3 | F24: 3 | G24: 1 | H24: 3 | I24: 0 | J24: 3 | K24: 3 | L24: 1 | M24: 2 | N24: 1 | O24: 0 | P24: 0 | Q24: 0 | R24: 0 | S24: 2 | T24: 1 | U24: 0 | V24: 1 | W24: 1 | X24: 0 | Y24: 0 | Z24: 30 | AA24: 0.5660377358
A25: Роспечать | B25: 1 | C25: 1 | D25: 1 | E25: 0 | F25: 0 | G25: 0 | H25: 1 | I25: 2 | J25: 0 | K25: 1 | L25: 0 | M25: 0 | N25: 0 | O25: 0 | P25: 0 | Q25: 0 | R25: 0 | S25: 1 | T25: 1 | U25: 2 | V25: 1 | W25: 3 | X25: 0 | Y25: 0 | Z25: 15 | AA25: 0.2830188679
A26: Роспотребнадзор | B26: 1 | C26: 1 | D26: 3 | E26: 3 | F26: 0 | G26: 1 | H26: 0 | I26: 2 | J26: 0 | K26: 3 | L26: 1 | M26: 0 | N26: 1 | O26: 0 | P26: 0 | Q26: 0 | R26: 0 | S26: 3 | T26: 1 | U26: 0 | V26: 3 | W26: 3 | X26: 0 | Y26: 1 | Z26: 27 | AA26: 0.5094339623
A27: Росприроднадзор | B27: 1 | C27: 1 | D27: 1 | E27: 0 | F27: 0 | G27: 1 | H27: 0 | I27: 0 | J27: 0 | K27: 0 | L27: 1 | M27: 0 | N27: 1 | O27: 0 | P27: 0 | Q27: 0 | R27: 0 | S27: 1 | T27: 1 | U27: 0 | V27: 1 | W27: 0 | X27: 1 | Y27: 0 | Z27: 10 | AA27: 0.1886792453
A28: Росреестр | B28: 1 | C28: 1 | D28: 3 | E28: 3 | F28: 3 | G28: 1 | H28: 0 | I28: 0 | J28: 0 | K28: 3 | L28: 1 | M28: 3 | N28: 1 | O28: 0 | P28: 0 | Q28: 0 | R28: 2 | S28: 3 | T28: 1 | U28: 1 | V28: 3 | W28: 3 | X28: 0 | Y28: 1 | Z28: 34 | AA28: 0.641509434
A29: Росрезерв | B29: 0 | C29: 0 | D29: 0 | E29: 0 | F29: 0 | G29: 0 | H29: 0 | I29: 0 | J29: 0 | K29: 0 | L29: 0 | M29: 0 | N29: 0 | O29: 0 | P29: 0 | Q29: 0 | R29: 0 | S29: 0 | T29: 0 | U29: 0 | V29: 0 | W29: 0 | X29: 0 | Y29: 0 | Z29: 0 | AA29: 0
A30: Росрыболовство | B30: 1 | C30: 1 | D30: 1 | E30: 0 | F30: 0 | G30: 1 | H30: 3 | I30: 0 | J30: 3 | K30: 3 | L30: 1 | M30: 0 | N30: 1 | O30: 0 | P30: 0 | Q30: 0 | R30: 0 | S30: 1 | T30: 0 | U30: 2 | V30: 3 | W30: 3 | X30: 1 | Y30: 1 | Z30: 26 | AA30: 0.4905660377
A31: Россвязь | B31: 1 | C31: 1 | D31: 3 | E31: 3 | F31: 0 | G31: 1 | H31: 0 | I31: 3 | J31: 0 | K31: 2 | L31: 0 | M31: 0 | N31: 1 | O31: 0 | P31: 0 | Q31: 0 | R31: 0 | S31: 1 | T31: 1 | U31: 0 | V31: 1 | W31: 0 | X31: 0 | Y31: 0 | Z31: 18 | AA31: 0.3396226415
A32: Россельхознадзор | B32: 1 | C32: 1 | D32: 3 | E32: 3 | F32: 3 | G32: 1 | H32: 3 | I32: 0 | J32: 0 | K32: 2 | L32: 1 | M32: 0 | N32: 1 | O32: 0 | P32: 0 | Q32: 0 | R32: 0 | S32: 3 | T32: 1 | U32: 0 | V32: 3 | W32: 3 | X32: 0 | Y32: 1 | Z32: 30 | AA32: 0.5660377358
A33: Россотрудничество | B33: 0 | C33: 0 | D33: 0 | E33: 0 | F33: 0 | G33: 0 | H33: 0 | I33: 0 | J33: 0 | K33: 0 | L33: 0 | M33: 0 | N33: 0 | O33: 0 | P33: 0 | Q33: 0 | R33: 0 | S33: 0 | T33: 0 | U33: 0 | V33: 0 | W33: 0 | X33: 0 | Y33: 0 | Z33: 0 | AA33: 0
A34: Росстандарт | B34: 1 | C34: 1 | D34: 1 | E34: 0 | F34: 0 | G34: 1 | H34: 0 | I34: 0 | J34: 0 | K34: 3 | L34: 1 | M34: 2 | N34: 1 | O34: 0 | P34: 0 | Q34: 0 | R34: 0 | S34: 1 | T34: 1 | U34: 2 | V34: 3 | W34: 3 | X34: 0 | Y34: 0 | Z34: 21 | AA34: 0.3962264151
A35: Росстат | B35: 1 | C35: 1 | D35: 3 | E35: 3 | F35: 3 | G35: 1 | H35: 2 | I35: 0 | J35: 0 | K35: 3 | L35: 1 | M35: 0 | N35: 1 | O35: 0 | P35: 0 | Q35: 0 | R35: 2 | S35: 3 | T35: 1 | U35: 0 | V35: 1 | W35: 1 | X35: 1 | Y35: 0 | Z35: 28 | AA35: 0.5283018868
A36: Ростехнадзор | B36: 1 | C36: 1 | D36: 3 | E36: 0 | F36: 0 | G36: 1 | H36: 0 | I36: 3 | J36: 0 | K36: 2 | L36: 1 | M36: 2 | N36: 1 | O36: 0 | P36: 0 | Q36: 0 | R36: 1 | S36: 2 | T36: 1 | U36: 0 | V36: 3 | W36: 3 | X36: 0 | Y36: 1 | Z36: =SUM(B36:Y36) -> 26 | AA36: =Z36/$AA$2 -> 0.4905660377
A37: Ространснадзор | B37: 1 | C37: 1 | D37: 1 | E37: 0 | F37: 0 | G37: 1 | H37: 0 | I37: 0 | J37: 0 | K37: 0 | L37: 0 | M37: 1 | N37: 1 | O37: 0 | P37: 0 | Q37: 0 | R37: 3 | S37: 1 | T37: 1 | U37: 2 | V37: 1 | W37: 2 | X37: 1 | Y37: 1 | Z37: 18 | AA37: 0.3396226415
A38: Роструд | B38: 1 | C38: 1 | D38: 1 | E38: 0 | F38: 0 | G38: 1 | H38: 0 | I38: 0 | J38: 0 | K38: 0 | L38: 0 | M38: 0 | N38: 1 | O38: 0 | P38: 0 | Q38: 0 | R38: 0 | S38: 1 | T38: 1 | U38: 0 | V38: 1 | W38: 1 | X38: 0 | Y38: 0 | Z38: 9 | AA38: 0.1698113208
A39: Ростуризм | B39: 2 | C39: 1 | D39: 2 | E39: 3 | F39: 0 | G39: 1 | H39: 3 | I39: 0 | J39: 0 | K39: 1 | L39: 0 | M39: 1 | N39: 1 | O39: 1 | P39: 0 | Q39: 0 | R39: 3 | S39: 3 | T39: 1 | U39: 0 | V39: 1 | W39: 1 | X39: 0 | Y39: 0 | Z39: 25 | AA39: 0.4716981132
A40: Росфинмониторинг | B40: 0 | C40: 0 | D40: 0 | E40: 0 | F40: 0 | G40: 0 | H40: 0 | I40: 0 | J40: 0 | K40: 0 | L40: 0 | M40: 0 | N40: 0 | O40: 0 | P40: 0 | Q40: 0 | R40: 0 | S40: 0 | T40: 0 | U40: 0 | V40: 0 | W40: 0 | X40: 0 | Y40: 0 | Z40: 0 | AA40: 0
A41: СВР России | B41: 0 | C41: 0 | D41: 0 | E41: 0 | F41: 0 | G41: 0 | H41: 0 | I41: 0 | J41: 0 | K41: 0 | L41: 0 | M41: 0 | N41: 0 | O41: 0 | P41: 0 | Q41: 0 | R41: 0 | S41: 0 | T41: 0 | U41: 0 | V41: 0 | W41: 0 | X41: 0 | Y41: 0 | Z41: 0 | AA41: 0
A42: Управление делами Президента Российской Федерации | B42: 1 | C42: 1 | D42: 3 | E42: 0 | F42: 0 | G42: 1 | H42: 0 | I42: 0 | J42: 0 | K42: 2 | L42: 1 | M42: 0 | N42: 1 | O42: 0 | P42: 0 | Q42: 0 | R42: 0 | S42: 0.99 | T42: 1 | U42: 0 | V42: 1 | W42: 1 | X42: 0 | Y42: 0 | Z42: 13.99 | AA42: 0.2639622642
A43: ФАДН России | B43: 2 | C43: 1 | D43: 3 | E43: 3 | F43: 0 | G43: 1 | H43: 1 | I43: 0 | J43: 0 | K43: 0 | L43: 0 | M43: 1 | N43: 1 | O43: 1 | P43: 1 | Q43: 1 | R43: 0 | S43: 3 | T43: 1 | U43: 0 | V43: 0 | W43: 0 | X43: 0 | Y43: 0 | Z43: 20 | AA43: 0.3773584906
A44: ФАС России | B44: 2 | C44: 1 | D44: 3 | E44: 3 | F44: 0 | G44: 1 | H44: 3 | I44: 0 | J44: 3 | K44: 3 | L44: 1 | M44: 3 | N44: 1 | O44: 1 | P44: 1 | Q44: 0 | R44: 2 | S44: 2 | T44: 1 | U44: 0 | V44: 3 | W44: 3 | X44: 1 | Y44: 1 | Z44: 39 | AA44: 0.7358490566
A45: Федеральная служба судебных приставов (ФССП России) | B45: 2 | C45: 1 | D45: 3 | E45: 3 | F45: 2 | G45: 1 | H45: 0 | I45: 3 | J45: 0 | K45: 2 | L45: 0 | M45: 0 | N45: 1 | O45: 1 | P45: 0 | Q45: 0 | R45: 0 | S45: 3 | T45: 1 | U45: 2 | V45: 3 | W45: 3 | X45: 0 | Y45: 0 | Z45: 31 | AA45: 0.5849056604
A46: ФМБА России | B46: 1 | C46: 0 | D46: 0 | E46: 0 | F46: 0 | G46: 0 | H46: 0 | I46: 0 | J46: 0 | K46: 0 | L46: 0 | M46: 0 | N46: 0 | O46: 0 | P46: 0 | Q46: 0 | R46: 0 | S46: 0 | T46: 1 | U46: 0 | V46: 0 | W46: 0 | X46: 0 | Y46: 0 | Z46: 2 | AA46: 0.03773584906
A47: ФНС России | B47: 1 | C47: 1 | D47: 3 | E47: 3 | F47: 0 | G47: 1 | H47: 1 | I47: 0 | J47: 3 | K47: 3 | L47: 1 | M47: 1 | N47: 1 | O47: 1 | P47: 0 | Q47: 0 | R47: 0 | S47: 2 | T47: 1 | U47: 0 | V47: 3 | W47: 3 | X47: 1 | Y47: 0 | Z47: 30 | AA47: 0.5660377358
A48: ФСБ России | B48: 2 | C48: 0 | D48: 0 | E48: 0 | F48: 0 | G48: 0 | H48: 2 | I48: 0 | J48: 0 | K48: 0 | L48: 0 | M48: 0 | N48: 0 | O48: 0 | P48: 0 | Q48: 0 | R48: 0 | S48: 0 | T48: 1 | U48: 0 | V48: 0 | W48: 0 | X48: 1 | Y48: 0 | Z48: 6 | AA48: 0.1132075472
A49: ФСВТС России | B49: 0 | C49: 0 | D49: 0 | E49: 0 | F49: 0 | G49: 0 | H49: 0 | I49: 0 | J49: 0 | K49: 0 | L49: 0 | M49: 0 | N49: 0 | O49: 0 | P49: 0 | Q49: 0 | R49: 0 | S49: 0 | T49: 0 | U49: 0 | V49: 0 | W49: 0 | X49: 0 | Y49: 0 | Z49: 0 | AA49: 0
A50: ФСИН России | B50: 1 | C50: 1 | D50: 3 | E50: 0 | F50: 1 | G50: 1 | H50: 3 | I50: 0 | J50: 0 | K50: 0 | L50: 1 | M50: 2 | N50: 0 | O50: 0 | P50: 0 | Q50: 0 | R50: 0 | S50: 1 | T50: 1 | U50: 0 | V50: 0 | W50: 1 | X50: 2 | Y50: 0 | Z50: 18 | AA50: 0.3396226415
A51: ФСО России | B51: 0 | C51: 0 | D51: 0 | E51: 0 | F51: 0 | G51: 0 | H51: 0 | I51: 0 | J51: 0 | K51: 0 | L51: 0 | M51: 0 | N51: 0 | O51: 0 | P51: 0 | Q51: 0 | R51: 0 | S51: 0 | T51: 0 | U51: 0 | V51: 0 | W51: 0 | X51: 0 | Y51: 0 | Z51: 0 | AA51: 0
A52: ФСТЭК России | B52: 0 | C52: 0 | D52: 0 | E52: 0 | F52: 0 | G52: 0 | H52: 0 | I52: 0 | J52: 0 | K52: 0 | L52: 0 | M52: 0 | N52: 0 | O52: 0 | P52: 0 | Q52: 0 | R52: 0 | S52: 0 | T52: 0 | U52: 0 | V52: 0 | W52: 0 | X52: 0 | Y52: 0 | Z52: 0 | AA52: 0
A53: ФТС России | B53: 2 | C53: 1 | D53: 3 | E53: 0 | F53: 0 | G53: 1 | H53: 3 | I53: 2 | J53: 0 | K53: 2 | L53: 1 | M53: 2 | N53: 1 | O53: 1 | P53: 0 | Q53: 1 | R53: 0 | S53: 1 | T53: 1 | U53: 0 | V53: 2 | W53: 3 | X53: 0 | Y53: 0 | Z53: 27 | AA53: 0.5094339623

Sheet СС Службы
A1: Ведомство | B1: VK | C1: FB | D1: OK | E1: Inst | F1: has_sm_account | G1: has_contacts_ sm | H1: period_post | I1: Erpost_VK | J1: TR _VK | K1: Erpost_Fb | L1: TR_Fb | M1: Erpost_OK | N1: TR _OK | O1: Erpost_Inst | P1: TR_Inst | Q1: ER_post_rate | R1: TR_post_rate | S1: sm_feedback | T1: sm_feedback_content | U1: sm_feedback_content dtl | V1: Total | W1: Итог
A2: Главное управление специальных программ Президента Российской Федерации (ГУСП) | B2: нет аккаунта | C2: нет аккаунта | D2: нет аккаунта | E2: нет аккаунта | F2: 0 | G2: 0 | H2: 0 | I2: 0 | J2: 0 | K2: 0 | L2: 0 | M2: 0 | N2: 0 | O2: 0 | P2: 0 | Q2: 0 | R2: 0 | S2: 0 | T2: 0 | U2: 0 (нельзя отправить сообщение) | V2: =SUM(F2,G2,H2,Q2,R2,S2,T2) -> 0 | W2: =$V2/[1]Коды!$D$28 -> 0
A3: Государственная фельдъегерская служба Российской Федерации (ГФС России) | B3: нет аккаунта | C3: нет аккаунта | D3: нет аккаунта | E3: нет аккаунта | F3: 0 | G3: 0 | H3: 0 | I3: 0 | J3: 0 | K3: 0 | L3: 0 | M3: 0 | N3: 0 | O3: 0 | P3: 0 | Q3: 0 | R3: 0 | S3: 0 | T3: 0 | U3: 0 (нельзя отправить сообщение) | V3: 0 | W3: =$V3/[1]Коды!$D$28 -> 0
A4: Казначейство России | B4: нет аккаунта | C4: 1744 | D4: нет аккаунта | E4: 13278 | F4: 1 | G4: 1 | H4: 2 | I4: 0 | J4: 0 | K4: 0.889 | L4: 0.011 | M4: 0 | N4: 0 | O4: 3.109 | P4: 0.011 | Q4: 3 | R4: 1 | S4: 1 | T4: 0 | U4: 0 (нет ответа) (Фейсбук) | V4: 9 | W4: =$V4/[1]Коды!$D$28 -> 0.5294117647
A5: Росавиация | B5: нет аккаунта | C5: 498 | D5: нет аккаунта | E5: 0 | F5: 1 | G5: 1 | H5: 1 | I5: 0 | J5: 0 | K5: 0.071 | L5: 0.03 | M5: 0 | N5: 0 | O5: 0 | P5: 0 | Q5: 1 | R5: 1 | S5: 0 | T5: 0 | U5: 0 (нельзя написать сообщение) | V5: 5 | W5: =$V5/[1]Коды!$D$28 -> 0.2941176471
A6: Росавтодор | B6: 160434 | C6: 59165 | D6: 35099 | E6: 77407 | F6: 3 | G6: 1 | H6: 1 | I6: 0.22 | J6: 0.078 | K6: 0.093 | L6: 0.012 | M6: 0.033 | N6: 0.002 | O6: 0.871 | P6: 0.06 | Q6: 2 | R6: 2 | S6: 2 | T6: 0 | U6: 0 (ВКонтакте) | V6: 11 | W6: =$V6/[1]Коды!$D$28 -> 0.6470588235
A7: Росаккредитация | B7: нет аккаунта | C7: 451 | D7: нет аккаунта | E7: нет аккаунта | F7: 1 | G7: 1 | H7: 2 | I7: 0 | J7: 0 | K7: 1.398 | L7: 0.032 | M7: 0 | N7: 0 | O7: 0 | P7: 0 | Q7: 3 | R7: 1 | S7: 0 | T7: 0 | U7: 0 (нельзя отправить сообщение) | V7: 8 | W7: =$V7/[1]Коды!$D$28 -> 0.4705882353
A8: Росалкогольрегулирование | B8: 1092 | C8: 347 | D8: нет аккаунта | E8: 1219 | F8: 1 | G8: 1 | H8: 2 | I8: 0.021 | J8: 0.007 | K8: 0.378 | L8: 0.015 | M8: 0 | N8: 0 | O8: 2.912 | P8: 0.005 | Q8: 3 | R8: 1 | S8: 1 | T8: 0 | U8: 0 (нет ответа) (ВК) | V8: 9 | W8: =$V8/[1]Коды!$D$28 -> 0.5294117647
A9: Росархив | B9: 2508 | C9: нет аккаунта | D9: нет аккаунта | E9: нет аккаунта | F9: 1 | G9: 1 | H9: 1 | I9: 1.764 | J9: 0.024 | K9: 0 | L9: 0 | M9: 0 | N9: 0 | O9: 0 | P9: 0 | Q9: 3 | R9: 1 | S9: 1 | T9: 0 | U9: 0 (нет ответа) (ВК) | V9: 8 | W9: =$V9/[1]Коды!$D$28 -> 0.4705882353
A10: Росводресурсы | B10: нет аккаунта | C10: нет аккаунта | D10: нет аккаунта | E10: нет аккаунта | F10: 0 | G10: 0 | H10: 0 | I10: 0 | J10: 0 | K10: 0 | L10: 0 | M10: 0 | N10: 0 | O10: 0 | P10: 0 | Q10: 0 | R10: 0 | S10: 0 | T10: 0 | U10: 0 (нельзя отправить сообщение) | V10: 0 | W10: =$V10/[1]Коды!$D$28 -> 0
A11: Росгвардия | B11: 63345 | C11: нет аккаунта | D11: 206 | E11: 80831 | F11: 1 | G11: 1 | H11: 2 | I11: 0.152 | J11: 0 | K11: 0 | L11: 0 | M11: 0.157 | N11: 0 | O11: 0.628 | P11: 0.003 | Q11: 2 | R11: 1 | S11: 1 | T11: 0 | U11: 0 (нет ответа) (Инстаграм) | V11: 8 | W11: =$V11/[1]Коды!$D$28 -> 0.4705882353
A12: Росгидромет | B12: 3894 | C12: 1858 | D12: нет аккаунта | E12: 1757 | F12: 1 | G12: 0 | H12: 2 | I12: 0.384 | J12: 0.005 | K12: 0.211 | L12: 0.006 | M12: 0 | N12: 0 | O12: 6.666 | P12: 0.435 | Q12: 3 | R12: 2 | S12: 1 | T12: 0 | U12: 0 (Инстаграм) | V12: 9 | W12: =$V12/[1]Коды!$D$28 -> 0.5294117647
A13: Росжелдор | B13: нет аккаунта | C13: нет аккаунта | D13: нет аккаунта | E13: нет аккаунта | F13: 0 | G13: 0 | H13: 0 | I13: 0 | J13: 0 | K13: 0 | L13: 0 | M13: 0 | N13: 0 | O13: 0 | P13: 0 | Q13: 0 | R13: 0 | S13: 0 | T13: 0 | U13: 0 (нельзя написать сообщение) | V13: 0 | W13: =$V13/[1]Коды!$D$28 -> 0
A14: Росздравнадзор | B14: 273 | C14: нет аккаунта | D14: нет аккаунта | E14: нет аккаунта | F14: 1 | G14: 0 | H14: 1 | I14: 3.894 | J14: 0 | K14: 0 | L14: 0 | M14: 0 | N14: 0 | O14: 0 | P14: 0 | Q14: 3 | R14: 0 | S14: 0 | T14: 0 | U14: 0 (нельзя отправить сообщение) | V14: 5 | W14: =$V14/[1]Коды!$D$28 -> 0.2941176471
A15: Росимущество | B15: 0 | C15: 2649 | D15: нет аккаунта | E15: 2268 | F15: 1 | G15: 1 | H15: 2 | I15: 0 | J15: 0 | K15: 0.953 | L15: 0.04 | M15: 0 | N15: 0 | O15: 6.265 | P15: 0.16 | Q15: 3 | R15: 3 | S15: 1 | T15: 0 | U15: 0 (нет ответа) (Инстаграм) | V15: 11 | W15: =$V15/[1]Коды!$D$28 -> 0.6470588235
A16: Роскомнадзор | B16: 79896 | C16: 7793 | D16: нет аккаунта | E16: нет аккаунта | F16: 1 | G16: 1 | H16: 2 | I16: 0.089 | J16: 0.036 | K16: 0.103 | L16: 0.024 | M16: 0 | N16: 0 | O16: 0 | P16: 0 | Q16: 1 | R16: 1 | S16: 1 | T16: 0 | U16: 0 (нет ответа) (ВК) | V16: 7 | W16: =$V16/[1]Коды!$D$28 -> 0.4117647059
A17: Рослесхоз | B17: 9158 | C17: 3188 | D17: нет аккаунта | E17: 7561 | F17: 1 | G17: 1 | H17: 2 | I17: 0.359 | J17: 0.029 | K17: 0.617 | L17: 0.05 | M17: 0 | N17: 0 | O17: 5.05 | P17: 0.081 | Q17: 3 | R17: 2 | S17: 1 | T17: 0 | U17: 0 (Инстаграм) | V17: 10 | W17: =$V17/[1]Коды!$D$28 -> 0.5882352941
A18: Росмолодёжь | B18: 116137 | C18: 6312 | D18: нет аккаунта | E18: 43539 | F18: 1 | G18: 2 | H18: 2 | I18: 0.069 | J18: 0.002 | K18: 0.187 | L18: 0.002 | M18: 0 | N18: 0 | O18: 0.554 | P18: 0.003 | Q18: 2 | R18: 1 | S18: 1 | T18: 1 | U18: 1 (ВК) | V18: 10 | W18: =$V18/[1]Коды!$D$28 -> 0.5882352941
A19: Росморречфлот | B19: нет аккаунта | C19: нет аккаунта | D19: нет аккаунта | E19: 1865 | F19: 1 | G19: 0 | H19: 1 | I19: 0 | J19: 0 | K19: 0 | L19: 0 | M19: 0 | N19: 0 | O19: 3.522 | P19: 0.015 | Q19: 3 | R19: 1 | S19: 1 | T19: 0 | U19: 0 (Инстаграм) | V19: 7 | W19: =$V19/[1]Коды!$D$28 -> 0.4117647059
A20: Роснедра | B20: нет аккаунта | C20: нет аккаунта | D20: нет аккаунта | E20: нет аккаунта | F20: 0 | G20: 0 | H20: 0 | I20: 0 | J20: 0 | K20: 0 | L20: 0 | M20: 0 | N20: 0 | O20: 0 | P20: 0 | Q20: 0 | R20: 0 | S20: 0 | T20: 0 | U20: 0 (нельзя написать) | V20: 0 | W20: =$V20/[1]Коды!$D$28 -> 0
A21: Рособрнадзор | B21: 52986 | C21: 8480 | D21: нет аккаунта | E21: 37072 | F21: 1 | G21: 1 | H21: 1 | I21: 0.688 | J21: 0 | K21: 0.5 | L21: 0.005 | M21: 0 | N21: 0 | O21: 0.497 | P21: 0.007 | Q21: 2 | R21: 1 | S21: 1 | T21: 0 | U21: 0 (Фейсбук) | V21: 7 | W21: =$V21/[1]Коды!$D$28 -> 0.4117647059
A22: Роспатент | B22: нет аккаунта | C22: 3588 | D22: нет аккаунта | E22: нет аккаунта | F22: 1 | G22: 1 | H22: 2 | I22: 0 | J22: 0 | K22: 1.074 | L22: 0.036 | M22: 0 | N22: 0 | O22: 0 | P22: 0 | Q22: 3 | R22: 2 | S22: 1 | T22: 0 | U22: 0 (Фейсбук) | V22: 10 | W22: =$V22/[1]Коды!$D$28 -> 0.5882352941
A23: Роспечать | B23: нет аккаунта | C23: нет аккаунта | D23: нет аккаунта | E23: нет аккаунта | F23: 0 | G23: 0 | H23: 0 | I23: 0 | J23: 0 | K23: 0 | L23: 0 | M23: 0 | N23: 0 | O23: 0 | P23: 0 | Q23: 0 | R23: 0 | S23: 0 | T23: 0 | U23: 0 (нельзя отправить сообщение) | V23: 0 | W23: =$V23/[1]Коды!$D$28 -> 0
A24: Роспотребнадзор | B24: 74741 | C24: 17030 | D24: Страница "https://ok.ru/group/rospotrebnadzor.official" не найдена или закрыта | E24: 715944 | F24: 1 | G24: 0 | H24: 2 | I24: 0.654 | J24: 0 | K24: 0.106 | L24: 0.012 | M24: 0 | N24: 0 | O24: 0.005 | P24: 0 | Q24: 2 | R24: 1 | S24: 0 | T24: 0 | U24: 0 (нельзя отправить сообщение) | V24: 6 | W24: =$V24/[1]Коды!$D$28 -> 0.3529411765
A25: Росприроднадзор | B25: 16021 | C25: 9886 | D25: 5990 | E25: 22705 | F25: 2 | G25: 1 | H25: 2 | I25: 3.342 | J25: 0.068 | K25: 1.833 | L25: 0.069 | M25: 1.654 | N25: 0.062 | O25: 2.645 | P25: 0.055 | Q25: 3 | R25: 2 | S25: 1 | T25: 0 | U25: 0 (Инстаграм) | V25: 11 | W25: =$V25/[1]Коды!$D$28 -> 0.6470588235
A26: Росреестр | B26: 45739 | C26: 4303 | D26: нет аккаунта | E26: нет аккаунта | F26: 1 | G26: 1 | H26: 2 | I26: 0.257 | J26: 0 | K26: 0.746 | L26: 0.182 | M26: 0 | N26: 0 | O26: 0 | P26: 0 | Q26: 2 | R26: 3 | S26: 0 | T26: 0 | U26: 0 (нельзя отправить сообщение) | V26: 9 | W26: =$V26/[1]Коды!$D$28 -> 0.5294117647
A27: Росрезерв | B27: 82 | C27: 127 | D27: нет аккаунта | E27: нет аккаунта | F27: 1 | G27: 1 | H27: 1 | I27: 0 | J27: 0 | K27: 6.142 | L27: 0.315 | M27: 0 | N27: 0 | O27: 0 | P27: 0 | Q27: 3 | R27: 3 | S27: 1 | T27: 0 | U27: 0 (нет ответа) (Фейсбук) | V27: 10 | W27: =$V27/[1]Коды!$D$28 -> 0.5882352941
A28: Росрыболовство | B28: нет аккаунта | C28: 1302 | D28: нет аккаунта | E28: нет аккаунта | F28: 1 | G28: 1 | H28: 1 | I28: 0 | J28: 0 | K28: 0.53 | L28: 0.04 | M28: 0 | N28: 0 | O28: 0 | P28: 0 | Q28: 1 | R28: 1 | S28: 0 | T28: 0 | U28: 0 (нельзя написать сообщение) | V28: 5 | W28: =$V28/[1]Коды!$D$28 -> 0.2941176471
A29: Россвязь | B29: нет аккаунта | C29: 507 | D29: нет аккаунта | E29: нет аккаунта | F29: 1 | G29: 1 | H29: 2 | I29: 0 | J29: 0 | K29: 0.821 | L29: 0.004 | M29: 0 | N29: 0 | O29: 0 | P29: 0 | Q29: 2 | R29: 1 | S29: 1 | T29: 0 | U29: 0 (нет ответа) (Фейсбук) | V29: 8 | W29: =$V29/[1]Коды!$D$28 -> 0.4705882353
A30: Россельхознадзор | B30: нет аккаунта | C30: нет аккаунта | D30: нет аккаунта | E30: нет аккаунта | F30: 1 | G30: 0 | H30: 0 | I30: 0 | J30: 0 | K30: 0 | L30: 0 | M30: 0 | N30: 0 | O30: 0 | P30: 0 | Q30: 0 | R30: 0 | S30: 0 | T30: 0 | U30: 0 (нельзя написать) | V30: 1 | W30: =$V30/[1]Коды!$D$28 -> 0.05882352941
A31: Россотрудничество | B31: 7327 | C31: 23605 | D31: нет аккаунта | E31: 8503 | F31: 1 | G31: 1 | H31: 2 | I31: 0.126 | J31: 0.007 | K31: 0.302 | L31: 0.005 | M31: 0 | N31: 0 | O31: 0.851 | P31: 0.008 | Q31: 2 | R31: 1 | S31: 1 | T31: 0 | U31: 0 (Фейсбук) | V31: 8 | W31: =$V31/[1]Коды!$D$28 -> 0.4705882353
A32: Росстандарт | B32: нет аккаунта | C32: 1373 | D32: нет аккаунта | E32: нет аккаунта | F32: 1 | G32: 1 | H32: 1 | I32: 0 | J32: 0 | K32: 1.357 | L32: 0.086 | M32: 0 | N32: 0 | O32: 0 | P32: 0 | Q32: 3 | R32: 2 | S32: 1 | T32: 2 | U32: 2 (Фейсбук) | V32: 11 | W32: =$V32/[1]Коды!$D$28 -> 0.6470588235
A33: Росстат | B33: 3421 | C33: 1290 | D33: 215 | E33: нет аккаунта | F33: 1 | G33: 1 | H33: 2 | I33: 0.999 | J33: 0.065 | K33: 1.787 | L33: 0.05 | M33: 2.627 | N33: 0.058 | O33: 0 | P33: 0 | Q33: 3 | R33: 2 | S33: 1 | T33: 2 | U33: 2 (ВК) | V33: 12 | W33: =$V33/[1]Коды!$D$28 -> 0.7058823529
A34: Ростехнадзор | B34: 80 | C34: 887 | D34: нет аккаунта | E34: нет аккаунта | F34: 1 | G34: 1 | H34: 1 | I34: 0 | J34: 0 | K34: 2.192 | L34: 0.072 | M34: 0 | N34: 0 | O34: 0 | P34: 0 | Q34: 3 | R34: 2 | S34: 1 | T34: 1 | U34: 1 (Фейсбук) | V34: 10 | W34: =$V34/[1]Коды!$D$28 -> 0.5882352941
A35: Ространснадзор | B35: нет аккаунта | C35: 137 | D35: нет аккаунта | E35: нет аккаунта | F35: 1 | G35: 1 | H35: 0 | I35: 0 | J35: 0 | K35: 0 | L35: 0 | M35: 0 | N35: 0 | O35: 0 | P35: 0 | Q35: 0 | R35: 0 | S35: 1 | T35: 0 | U35: 0 (Фейсбук) | V35: 3 | W35: =$V35/[1]Коды!$D$28 -> 0.1764705882
A36: Роструд | B36: 15884 | C36: 4184 | D36: нет аккаунта | E36: 1811 | F36: 1 | G36: 1 | H36: 2 | I36: 0.176 | J36: 0.059 | K36: 0.248 | L36: 0.037 | M36: 0 | N36: 0 | O36: 69.175 | P36: 0.12 | Q36: 3 | R36: 3 | S36: 1 | T36: 2 | U36: 2 (ВК) | V36: 13 | W36: =$V36/[1]Коды!$D$28 -> 0.7647058824
A37: Ростуризм | B37: 8740 | C37: 1223 | D37: нет аккаунта | E37: нет аккаунта | F37: 1 | G37: 1 | H37: 2 | I37: 0.445 | J37: 0.285 | K37: 1.111 | L37: 0.127 | M37: 0 | N37: 0 | O37: 0 | P37: 0 | Q37: 3 | R37: 3 | S37: 1 | T37: 0 | U37: 0 (ВК) | V37: 11 | W37: =$V37/[1]Коды!$D$28 -> 0.6470588235
A38: Росфинмониторинг | B38: нет аккаунта | C38: нет аккаунта | D38: нет аккаунта | E38: нет аккаунта | F38: 0 | G38: 0 | H38: 0 | I38: 0 | J38: 0 | K38: 0 | L38: 0 | M38: 0 | N38: 0 | O38: 0 | P38: 0 | Q38: 0 | R38: 0 | S38: 0 | T38: 0 | U38: 0 (нельзя отправить сообщение) | V38: 0 | W38: =$V38/[1]Коды!$D$28 -> 0
A39: СВР России | B39: нет аккаунта | C39: нет аккаунта | D39: нет аккаунта | E39: нет аккаунта | F39: 0 | G39: 0 | H39: 0 | I39: 0 | J39: 0 | K39: 0 | L39: 0 | M39: 0 | N39: 0 | O39: 0 | P39: 0 | Q39: 0 | R39: 0 | S39: 0 | T39: 0 | U39: 0 (нельзя отправить сообщение) | V39: 0 | W39: =$V39/[1]Коды!$D$28 -> 0
A40: Управление делами Президента Российской Федерации | B40: нет аккаунта | C40: нет аккаунта | D40: нет аккаунта | E40: нет аккаунта | F40: 0 | G40: 0 | H40: 0 | I40: 0 | J40: 0 | K40: 0 | L40: 0 | M40: 0 | N40: 0 | O40: 0 | P40: 0 | Q40: 0 | R40: 0 | S40: 0 | T40: 0 | U40: 0 (нельзя отправить сообщение) | V40: 0 | W40: =$V40/[1]Коды!$D$28 -> 0
A41: ФАДН России | B41: 3700 | C41: 2540 | D41: 23042 | E41: 5763 | F41: 2 | G41: 1 | H41: 2 | I41: 0.428 | J41: 0.006 | K41: 0.956 | L41: 0.012 | M41: 0 | N41: 0 | O41: 1.36 | P41: 0.012 | Q41: 3 | R41: 2 | S41: 1 | T41: 0 | U41: 0 (нет ответа) (Фейсбук) | V41: 11 | W41: =$V41/[1]Коды!$D$28 -> 0.6470588235
A42: ФАС России | B42: 21690 | C42: 8350 | D42: 705 | E42: 27028 | F42: 3 | G42: 1 | H42: 2 | I42: 0.204 | J42: 0.031 | K42: 0.298 | L42: 0.033 | M42: 0.48 | N42: 0.06 | O42: 0.712 | P42: 0.017 | Q42: 2 | R42: 2 | S42: 2 | T42: 2 | U42: 2 (ВК) | V42: 14 | W42: =$V42/[1]Коды!$D$28 -> 0.8235294118
A43: Федеральная служба судебных приставов (ФССП России) | B43: 68957 | C43: 2218 | D43: нет аккаунта | E43: нет аккаунта | F43: 1 | G43: 1 | H43: 2 | I43: 0.027 | J43: 0 | K43: 0.034 | L43: 0.014 | M43: 0 | N43: 0 | O43: 0 | P43: 0 | Q43: 1 | R43: 1 | S43: 0 | T43: 0 | U43: 0 (нельзя отправить сообщение) | V43: 6 | W43: =$V43/[1]Коды!$D$28 -> 0.3529411765
A44: ФМБА России | B44: 0 | C44: 0 | D44: нет аккаунта | E44: 6005 | F44: 1 | G44: 0 | H44: 2 | I44: 0 | J44: 0 | K44: 0 | L44: 0 | M44: 0 | N44: 0 | O44: 4.056 | P44: 0.106 | Q44: 3 | R44: 3 | S44: 1 | T44: 0 | U44: 0 (Инстаграм) | V44: 10 | W44: =$V44/[1]Коды!$D$28 -> 0.5882352941
A45: ФНС России | B45: 63465 | C45: 4123 | D45: нет аккаунта | E45: нет аккаунта | F45: 1 | G45: 1 | H45: 2 | I45: 0.196 | J45: 0 | K45: 1.319 | L45: 0.053 | M45: 0 | N45: 0 | O45: 0 | P45: 0 | Q45: 3 | R45: 1 | S45: 0 | T45: 0 | U45: 0 (нельзя отправить сообщение) | V45: 8 | W45: =$V45/[1]Коды!$D$28 -> 0.4705882353
A46: ФСБ России | B46: нет аккаунта | C46: нет аккаунта | D46: нет аккаунта | E46: нет аккаунта | F46: 0 | G46: 0 | H46: 0 | I46: 0 | J46: 0 | K46: 0 | L46: 0 | M46: 0 | N46: 0 | O46: 0 | P46: 0 | Q46: 0 | R46: 0 | S46: 0 | T46: 0 | U46: 0 (нельзя отправить сообщение) | V46: 0 | W46: =$V46/[1]Коды!$D$28 -> 0
A47: ФСВТС России | B47: нет аккаунта | C47: нет аккаунта | D47: нет аккаунта | E47: нет аккаунта | F47: 0 | G47: 0 | H47: 0 | I47: 0 | J47: 0 | K47: 0 | L47: 0 | M47: 0 | N47: 0 | O47: 0 | P47: 0 | Q47: 0 | R47: 0 | S47: 0 | T47: 0 | U47: 0 (нельзя отправить сообщение) | V47: 0 | W47: =$V47/[1]Коды!$D$28 -> 0
A48: ФСИН России | B48: 0 | C48: 276 | D48: нет аккаунта | E48: 11678 | F48: 1 | G48: 1 | H48: 2 | I48: 0 | J48: 0 | K48: 0.685 | L48: 0.009 | M48: 0 | N48: 0 | O48: 1.952 | P48: 0.023 | Q48: 3 | R48: 1 | S48: 1 | T48: 1 | U48: 1 (Инстаграм) | V48: 10 | W48: =$V48/[1]Коды!$D$28 -> 0.5882352941
A49: ФСО России | B49: нет аккаунта | C49: нет аккаунта | D49: нет аккаунта | E49: нет аккаунта | F49: 0 | G49: 0 | H49: 0 | I49: 0 | J49: 0 | K49: 0 | L49: 0 | M49: 0 | N49: 0 | O49: 0 | P49: 0 | Q49: 0 | R49: 0 | S49: 0 | T49: 0 | U49: 0 (нельзя отпраить сообщение) | V49: 0 | W49: =$V49/[1]Коды!$D$28 -> 0
A50: ФСТЭК России | B50: нет аккаунта | C50: нет аккаунта | D50: нет аккаунта | E50: нет аккаунта | F50: 0 | G50: 0 | H50: 0 | I50: 0 | J50: 0 | K50: 0 | L50: 0 | M50: 0 | N50: 0 | O50: 0 | P50: 0 | Q50: 0 | R50: 0 | S50: 0 | T50: 0 | U50: 0 (нельзя отправить сообщение) | V50: 0 | W50: =$V50/[1]Коды!$D$28 -> 0
A51: ФТС России | B51: нет аккаунта | C51: 2424 | D51: нет аккаунта | E51: 19710 | F51: 1 | G51: 1 | H51: 2 | I51: 0 | J51: 0 | K51: 2.25 | L51: 0.194 | M51: 0 | N51: 0 | O51: 5.481 | P51: 0.062 | Q51: 3 | R51: 3 | S51: 1 | T51: 1 | U51: 1 (Фейсбук) | V51: 12 | W51: =$V51/[1]Коды!$D$28 -> 0.7058823529
A52: Федеральная пробирная палата | B52: нет аккаунта | C52: нет аккаунта | D52: нет аккаунта | E52: нет аккаунта | F52: 0 | G52: 0 | H52: 0 | I52: 0 | J52: 0 | K52: 0 | L52: 0 | M52: 0 | N52: 0 | O52: 0 | P52: 0 | Q52: 0 | R52: 0 | S52: 0 | T52: 0 | U52: Ликвидировано | V52: 0 | W52: =$V52/[1]Коды!$D$28 -> 0
